Cogmind - Beta 13 X1 @@@ ROGUE MODE // 2023.07.19 @ 04:46:37 Player: cptwinky Result: Establishing Free Derelict Territories! Performance ------------- Evolutions (9) 4500 Regions Visited (34) 6800 Robots Destroyed (463) 2315 Value Destroyed (22456) 22456 Prototype IDs (85) 1700 Alien Tech Used (2) 400 Bonus (39328) 39328 TOTAL SCORE: 77499 Bonus ------- High Alert Combat Kills 2645 Follower Combat Kills 2818 Entered Garrisons 600 Network Hubs Disabled 400 Met Data Miner 300 Met Zhirov 300 Met Warlord at Base 500 MAIN.C Attacked Warlord 500 Warlord Defense Kills 1548 A7 Reached Mainframe 300 Met R17 at Cetus 500 Met Warlord at Research 2000 Invited to Help at Command 2000 Destroyed MAIN.C Guards 500 Met MAIN.C 5000 Hacked MAIN.C 300 Destroyed MAIN.C Shell 5000 Destroyed MAIN.C 10000 Met Warlord at Command 2000 Win 3000 Friendly Fire -883 Cogmind --------- Core Integrity 1390/1600 Matter 290/300 Energy 635/635 System Corruption 0% Temperature Cool (0) Movement Immobile (Siege) Location Free Derelict Territories Parts ------- > --- POWER (3) -------- Fusion Reactor Quantum Reactor Light Quantum Reactor > --- PROPULSION (8) --- Improved Heavy Treads Advanced Heavy Siege Treads Advanced Heavy Siege Treads Advanced Heavy Siege Treads > --- UTILITY (12) ----- Experimental Cooling System Huge Storage Unit Enhanced Optical Array Advanced Targeting Computer Advanced Targeting Computer Core Analyzer Experimental Core Analyzer Hardened Heavy Armor Plating Advanced Force Field Improved Corruption Screen Long-range Tractor Beam > --- WEAPON (3) ------- Heavy Hardcell Cannon RU-N14's Throwing Claymores v3 > --- INVENTORY (25) --- Quantum Reactor Advanced Heavy Treads Makeshift Trap Scanner Advanced Force Field Point Defense Array Advanced Component Analysis Suite Advanced System Restoration Module Transdimensional Reconstructor HERF Cannon Tri-rail Accelerator Linear Accelerator Linear Accelerator Gamma Bomb Array Micro-nuke Launcher Advanced Remote Datajack RU-N14's Throwing Claymores v3 (10) Powered Hammer Peak State ------------ > --- POWER ------------ Fusion Reactor Quantum Reactor Light Quantum Reactor > --- PROPULSION ------- Improved Heavy Treads Advanced Heavy Siege Treads Advanced Heavy Siege Treads Advanced Heavy Siege Treads > --- UTILITY ---------- Experimental Cooling System Huge Storage Unit Enhanced Optical Array Experimental Signal Interpreter Advanced Targeting Computer Advanced Targeting Computer Experimental Core Analyzer Hardened Heavy Armor Plating Advanced Force Field Advanced Hacking Suite Improved Corruption Screen > --- WEAPON ----------- HERF Cannon Heavy Hardcell Cannon > --- INVENTORY -------- Quantum Reactor Advanced Heavy Treads Makeshift Trap Scanner Advanced Sensor Array Advanced Force Field Point Defense Array Advanced Hacking Suite Advanced Component Analysis Suite Advanced System Restoration Module Long-range Tractor Beam Transdimensional Reconstructor Tri-rail Accelerator Linear Accelerator Linear Accelerator Gamma Bomb Array Micro-nuke Launcher Advanced Remote Datajack RU-N14's Throwing Claymores v3 RU-N14's Throwing Claymores v3 RU-N14's Throwing Claymores v3 RU-N14's Throwing Claymores v3 Powered Hammer [Rating: 202] Favorites ----------- Power Cooled Antimatter Reactor Engine Heavy Ion Engine Power Core Neutrino Core Reactor Cooled Antimatter Reactor Propulsion Improved Medium Treads Treads Improved Medium Treads Leg Improved Titanium Leg Hover Unit Cooled Antigrav System Flight Unit Electron Diverter Utility Experimental Signal Interpreter Device Improved Cooling System Storage Huge Storage Unit Processor Experimental Signal Interpreter Hackware Makeshift System Shield Protection Hardened Heavy Armor Plating Weapon Gatling Laser Energy Gun Gatling Laser Energy Cannon Phase Cannon Ballistic Gun Assault Rifle Ballistic Cannon Tri-rail Accelerator Launcher Micro-nuke Launcher Special Weapon RU-N14's Throwing Claymores v3 Impact Weapon Powered Hammer Slashing Weapon Ripper Special Melee Weapon Improved Datajack Build | -11 -10 -10 -10 -8 -8 -8 -8 -8 -8 -8 -7 -7 -7 -7 -6 -6 -6 -6 -6 -6 -5 -5 -5 -5 -4 -4 -4 -4 -4 -3 -3 -2 -1 -1 ------- Run | Jun Mat Min Sub Mat Gar Mat Gar Mat Gar Mat Fac Low Low Dat Pro Fac Ext Cet Arc Hub Fac Upp Upp War Pro Fac Upp Upp Zhi Pro Res Res Acc Com Slots Evolved 18 | . . . . 4 . . . . . . 2 . . . . 2 . . . . 2 . . . . 2 . . . . 2 2 2 . Power 2 | . . . . . . . . . . . . . . . . 1 . . . . . . . . . . . . . . 1 . . . Propulsion 5 | . . . . 1 . . . . . . 1 . . . . . . . . . 1 . . . . . . . . . . 2 . . Utility 10 | . . . . 3 . . . . . . . . . . . 1 . . . . 1 . . . . 2 . . . . 1 . 2 . Weapon 1 | . . . . . . . . . . . 1 . . . . . . . . . . . . . . . . . . . . . . . Parts Attached 618 | 2 10 . 35 47 17 18 19 20 10 11 14 22 19 3 22 18 21 2 7 11 45 24 18 21 10 27 12 9 10 10 49 16 26 13 Power 26 | . 1 . . 4 . . 1 1 . . . 1 . . 2 2 1 . . . 2 1 1 1 . . . . 2 . 3 2 1 . Engine 9 | . 1 . . 3 . . 1 1 . . . 1 . . 1 . 1 . . . . . . . . . . . . . . . . . Core 5 | . . . . 1 . . . . . . . . . . . 1 . . . . 1 1 1 . . . . . . . . . . . Reactor 12 | . . . . . . . . . . . . . . . 1 1 . . . . 1 . . 1 . . . . 2 . 3 2 1 . Propulsion 79 | 2 3 . 3 14 . 10 . 6 . 5 2 1 . . . . 7 1 . . 4 2 1 5 . 2 . . 2 1 2 5 1 . Treads 72 | 2 3 . 3 11 . 10 . 6 . 4 2 1 . . . . 7 1 . . 4 2 1 3 . 2 . . 1 1 2 5 1 . Leg 4 | . . . . 3 . . . . . 1 . . . . . . . . . . . . . . . . . . . . . . . . Wheel . | . . . . . . . . . . . . . . . . . . . . . . . . . . . . . . . . . . . Hover 2 | . . . . . . . . . . . . . . . . . . . . . . . . 1 . . . . 1 . . . . . Flight 1 | . . . . . . . . . . . . . . . . . . . . . . . . 1 . . . . . . . . . . Utility 261 | . 3 . 6 8 3 1 6 9 2 4 5 7 11 1 11 9 9 1 5 9 25 11 10 6 7 16 8 4 4 5 22 9 17 7 Device 197 | . . . 2 3 2 . 4 2 1 2 4 6 10 1 7 7 7 . 4 7 22 11 10 4 7 12 8 4 2 5 17 8 13 5 Storage 8 | . 1 . 1 1 . . . 2 . . . 1 . . . . . . . 1 1 . . . . . . . . . . . . . Processor 17 | . 1 . . 1 . . . . . 1 1 . . . 3 1 . . . . 1 . . 1 . . . . . . 3 1 3 . Hackware 6 | . . . . 1 . . . . 1 . . . . . . . . . . 1 . . . . . 1 . . . . . . 1 1 Protection 33 | . 1 . 3 2 1 1 2 5 . 1 . . 1 . 1 1 2 1 1 . 1 . . 1 . 3 . . 2 . 2 . . 1 Artifact . | . . . . . . . . . . . . . . . . . . . . . . . . . . . . . . . . . . . Weapon 252 | . 3 . 26 21 14 7 12 4 8 2 7 13 8 2 9 7 4 . 2 2 14 10 6 9 3 9 4 5 2 4 22 . 7 6 Energy Gun 129 | . 2 . 15 15 7 4 6 3 4 1 5 8 5 . 6 5 2 . 2 2 8 6 4 4 2 4 3 3 1 2 . . . . Energy Cannon 10 | . . . . . . . . . . . . . . . . 1 . . . . 1 . . . 1 1 . . . 1 4 . 1 . Ballistic Gun 12 | . 1 . . . . . . . . . . . . . . . . . . . . . . . . . . . . . 11 . . . Ballistic Cannon 7 | . . . . . . . . . . . . . . . . . . . . . . . . . . . . . . . 3 . 4 . Launcher 38 | . . . 1 4 3 3 5 1 4 1 1 2 2 1 1 . . . . . 2 2 . . . . 1 . . 1 . . 2 1 Special Weapon 15 | . . . . . . . . . . . . . . . . . . . . . . . . 3 . 2 . 1 . . 4 . . 5 Impact Weapon 20 | . . . 1 . 2 . 1 . . . 1 3 1 . 1 1 . . . . 3 1 2 . . 2 . 1 . . . . . . Slashing Weapon 10 | . . . 9 1 . . . . . . . . . . . . . . . . . . . . . . . . . . . . . . Piercing Weapon . | . . . . . . . . . . . . . . . . . . . . . . . . . . . . . . . . . . . Special Melee Weapon 11 | . . . . 1 2 . . . . . . . . 1 1 . 2 . . . . 1 . 2 . . . . 1 . . . . . Unidentified Prototypes 26 | . . . . 4 . . . . . . . . . . 3 2 . 2 . . 1 . 1 7 . . . . 5 . . . 1 . Corrupted Parts 1 | . . . . . . . . . . . . . . . . . . 1 . . . . . . . . . . . . . . . . System Corruption 8 | . . . . . . . . . . . . . . . . . . 8 . . . . . . . . . . . . . . . . Parts Lost 25 | . . . 3 . 2 2 6 2 2 . . . . . 1 . . . . . . . . . . 2 . . . 1 4 . . . Power 3 | . . . . . . . 2 . . . . . . . . . . . . . . . . . . . . . . . 1 . . . Propulsion 1 | . . . . . . . . . . . . . . . . . . . . . . . . . . . . . . . 1 . . . Utility 16 | . . . 1 . 2 1 3 2 2 . . . . . 1 . . . . . . . . . . 2 . . . 1 1 . . . Weapon 5 | . . . 2 . . 1 1 . . . . . . . . . . . . . . . . . . . . . . . 1 . . . Highest Loss Streak 3 | . . . 3 . 1 1 3 1 1 . . . . . 1 . . . . . . . . . . 2 . . . 1 2 . . . To Critical Strikes . | . . . . . . . . . . . . . . . . . . . . . . . . . . . . . . . . . . . Average Slot Usage (%) 92 | . 98 100 98 94 100 99 98 99 99 100 100 100 99 100 97 95 92 87 85 85 87 88 87 86 82 85 89 90 88 89 83 76 75 75 Engine 5 | . 13 14 14 9 14 15 11 8 9 9 7 7 7 7 7 1 1 6 6 6 1 . . . . . . . . . . . . . Reactor 3 | . . . . . . . . . . . . . . . . 6 6 6 6 6 4 5 5 5 5 5 5 5 4 5 10 11 11 11 Treads 24 | . 27 28 28 22 . 15 26 27 27 27 30 30 30 30 30 26 25 21 20 20 22 23 26 26 27 25 25 25 25 25 20 17 15 15 Device 12 | . . . 1 7 14 13 10 17 26 27 17 15 14 15 18 13 12 7 12 12 16 17 16 12 5 12 20 20 20 22 14 11 7 5 Storage 7 | . 18 14 13 6 7 7 8 9 9 9 7 7 7 7 7 6 6 6 6 6 5 5 5 5 5 5 5 5 5 5 4 4 3 3 Processor 6 | . 7 . . 6 7 7 2 . . . 4 7 7 7 7 8 6 6 6 6 5 5 5 6 11 10 10 10 10 10 13 16 22 23 Protection 8 | . 1 14 12 11 7 10 19 18 2 5 7 7 7 7 1 6 6 11 6 6 4 5 5 6 11 10 10 10 8 6 7 4 3 2 Energy Gun 17 | . 18 28 25 19 20 17 17 17 17 18 22 22 22 15 22 19 19 20 20 20 16 16 15 11 15 14 14 14 11 14 3 . . . Naked Turns . | . . . . . . . . . . . . . . . . . . . . . . . . . . . . . . . . . . . Heaviest Build 195 | 12 32 31 35 57 55 58 58 47 53 49 54 75 77 79 79 101 112 114 115 154 158 155 154 173 173 171 154 156 153 153 186 191 195 195 Greatest Support 315 | 40 40 40 40 80 60 66 60 63 60 66 88 88 88 88 88 88 105 140 140 140 160 160 180 188 188 191 191 191 191 203 203 305 315 315 Greatest Overweight (x) 35 | . 1 . . 1 . 2 . . . 1 . . . . . 1 1 1 35 1 2 1 . . . . . . . . 1 . . . Average Overweight (x) . | . . . . . . . . . . . . . . . . . 1 . 18 . . . . . . . . . . . . . . . Largest Inventory Capacity 25 | 8 15 15 15 15 15 15 15 15 15 15 15 20 20 20 20 20 20 20 20 25 25 25 25 25 25 25 25 25 25 25 25 25 25 25 Average Capacity 19 | 8 14 15 14 15 15 15 15 15 15 15 15 15 20 20 20 20 20 20 20 22 25 25 25 25 25 25 25 25 25 25 25 25 25 25 Most Carried 25 | 6 14 15 15 15 15 15 15 15 15 15 15 20 20 20 20 20 20 20 20 23 25 25 25 25 25 25 25 25 25 25 25 25 25 23 Average Carried 19 | 6 10 13 13 14 14 14 13 14 13 14 14 15 19 20 19 19 20 19 19 21 24 24 24 24 24 23 24 24 24 24 24 24 24 22 Final Capacity 25 | 8 15 15 15 15 15 15 15 15 15 15 15 20 20 20 20 20 20 20 20 25 25 25 25 25 25 25 25 25 25 25 25 25 25 25 Final Carried 25 | 6 14 14 15 15 15 15 12 15 13 15 15 20 20 20 20 20 20 20 20 23 25 25 25 25 25 25 25 25 25 25 25 25 23 19 Class Distribution -------------------- 29% | Mutant 19% | Scavenger-Skirmisher 11% | Scavenger-Tank 11% | Skirmisher 7% | Tank 7% | Scavenger-Mutant Dominant Class ---------------- Mutant | -10/Materials Mutant | -10/Mines Mutant | -10/Subcaves Derelict-Tank | -8/Materials Tank | -8/Garrison Mutant | -8/Materials Mutant | -8/Garrison Mutant | -8/Materials Mutant | -8/Garrison Mutant | -8/Materials Tank | -7/Factory Skirmisher | -7/Lower Caves Skirmisher | -7/Lower Caves Mutant | -7/Data Miner Skirmisher | -6/Proximity Caves Skirmisher | -6/Factory Commander-Tank | -6/Extension Commander-Tank | -6/Cetus Scavenger-Skirmisher | -6/Archives Scavenger-Tank | -6/Hub_04(d) Scavenger-Skirmisher | -5/Factory Scavenger-Skirmisher | -5/Upper Caves Scavenger-Skirmisher | -5/Upper Caves Scavenger-Mutant | -5/Warlord Scavenger-Skirmisher | -4/Proximity Caves Scavenger-Tank | -4/Factory Scavenger-Tank | -4/Upper Caves Scavenger-Tank | -4/Upper Caves Scavenger-Mutant | -4/Zhirov Scavenger-Gunner | -3/Proximity Caves Scavenger-Gunner | -3/Research Gunner | -2/Research Gunner | -1/Access Hacker-Mutant | -1/Command Resources | -11 -10 -10 -10 -8 -8 -8 -8 -8 -8 -8 -7 -7 -7 -7 -6 -6 -6 -6 -6 -6 -5 -5 -5 -5 -4 -4 -4 -4 -4 -3 -3 -2 -1 -1 ----------- Run | Jun Mat Min Sub Mat Gar Mat Gar Mat Gar Mat Fac Low Low Dat Pro Fac Ext Cet Arc Hub Fac Upp Upp War Pro Fac Upp Upp Zhi Pro Res Res Acc Com Matter Collected 8888 | 220 187 . 621 517 265 226 346 235 247 142 111 311 210 . 394 81 280 47 83 100 488 340 190 210 100 272 170 90 90 88 950 277 640 360 Remotely 656 | . . . . . . . . . . . . . . . . . . . . . . . . . . . . . . . . . 416 240 Salvage Created 18522 | . 450 89 369 1533 903 566 927 989 350 631 449 371 309 . 362 161 714 . 276 1016 1252 771 534 309 387 970 302 225 104 247 1547 . 963 446 Parts 835 | . 21 4 26 105 36 33 48 52 23 34 27 14 15 . 3 7 17 . 13 38 65 21 27 10 20 31 15 4 1 9 63 . 43 10 Haulers Intercepted 18 | . 2 . . 6 . . . 4 . 1 . . . . . 1 . . . 1 1 . . . . 1 . . . . 1 . . . Recyclers Shooed 14 | . 2 . . 3 . 1 . 1 . . . . . . . . 3 . . . . . . . . 1 . . . . 2 . . 1 Parts Field Recycled . | . . . . . . . . . . . . . . . . . . . . . . . . . . . . . . . . . . . Retrieved Matter . | . . . . . . . . . . . . . . . . . . . . . . . . . . . . . . . . . . . Parts Self-Destructed 133 | . . . 18 . . . . . . . . 13 14 . 3 . . . . . . 7 31 . 22 . 14 4 1 6 . . . . Prevented . | . . . . . . . . . . . . . . . . . . . . . . . . . . . . . . . . . . . Kills | -11 -10 -10 -10 -8 -8 -8 -8 -8 -8 -8 -7 -7 -7 -7 -6 -6 -6 -6 -6 -6 -5 -5 -5 -5 -4 -4 -4 -4 -4 -3 -3 -2 -1 -1 ------- Run | Jun Mat Min Sub Mat Gar Mat Gar Mat Gar Mat Fac Low Low Dat Pro Fac Ext Cet Arc Hub Fac Upp Upp War Pro Fac Upp Upp Zhi Pro Res Res Acc Com Combat Hostiles Destroyed 379 | . 5 2 11 30 23 18 28 16 13 9 11 6 8 . 5 1 13 . 1 15 20 11 8 12 9 19 7 4 . 6 30 . 22 16 Guns 205 | . 5 2 10 19 14 11 18 14 5 8 7 2 3 . 1 1 12 . 1 14 14 4 8 2 4 11 3 3 . 3 6 . . . Cannons 34 | . . . . . . . . . . . . . . . . . . . . . . . . 1 3 2 . . . . 13 . 12 3 AOE 128 | . . . 1 11 6 7 10 1 7 1 4 4 5 . 4 . . . . . 5 7 . 8 2 6 4 1 . 3 10 . 8 13 Classes Destroyed 27 | . 5 1 2 2 5 1 1 . 2 . . 1 . . . . . . . . 1 . . 2 2 1 . . . . 1 . . . Worker 13 | . . 1 . 2 . . . . . . 1 . . . . . . . . 1 1 . . . . 1 . . . . 5 . 1 . Builder 5 | . . . . 1 . 1 . . . . . . . . . . . . . . 1 . . . . . . . . . . . 2 . Hauler 18 | . 2 . . 6 . . . 4 . 1 . . . . . 1 . . . 1 1 . . . . 1 . . . . 1 . . . Recycler 7 | . 1 . . 2 . . . 1 . 1 . . . . . . . . . . 1 . . . . . . . . . . . . 1 Minesweeper 1 | . . . . . . . . . . . . . . . . . . . . . . . . . 1 . . . . . . . . . Mechanic 1 | . . . . . . 1 . . . . . . . . . . . . . . . . . . . . . . . . . . . . Operator 13 | . 1 . . 1 . 1 . 1 . 1 . . . . . . 1 . 6 . 1 . . . . . . . . . . . . . Drone 3 | . . . . . . . . . . . . . . . . . . . . . . . . . 1 . . . . 2 . . . . Watcher 27 | . 2 . . 5 . 1 . 2 . 1 1 . . . . 3 1 . . 2 3 . . . . 2 . . . . 2 . 1 1 Swarmer 89 | . . . 3 15 4 8 8 2 4 . 4 6 . . 3 . . . . . 8 4 . 1 1 4 4 . . . . . 5 5 Cutter 2 | . . . . . 2 . . . . . . . . . . . . . . . . . . . . . . . . . . . . . Saboteur 1 | . . . . . . . . . . . . . . . . . . . . . . . . . . . . . . . 1 . . . Grunt 131 | . 5 2 . 9 6 5 12 8 5 6 5 . 5 . . . 3 . . 8 5 5 . 6 2 4 . 3 . 2 15 . 4 6 Brawler 5 | . . . . . . . . 1 1 . . . 1 . . . . . . . . . . 2 . . . . . . . . . . Duelist 4 | . . . . . . . . . . . . . . . . . . . . . 1 . . . . . . . . . 2 . . 1 Protector 1 | . . . . . . . . . 1 . . . . . . . . . . . . . . . . . . . . . . . . . Sentry 59 | . . . . 6 5 5 6 5 . 3 1 . 1 . . . 10 . 1 4 1 1 . . 1 1 . . . . 5 . 3 . Demolisher 2 | . . . . . . . . . 1 . . . . . . . . . . . . . . . . 1 . . . . . . . . Specialist 1 | . . . . . 1 . . . . . . . . . . . . . . . . . . . . . . . . . . . . . Hunter 19 | . . . . . . . 2 . 1 . . . . . 2 . . . . . . . 3 1 . 2 . . . 2 2 . 4 . Programmer 35 | . . . . . 4 . . . . . 1 . 1 . . 1 . . . 3 4 . 2 . 4 3 2 . . . 4 . 6 . Behemoth 3 | . . . . . 1 . . . . . . . . . . . . . . . . . . . . . 1 . . . 1 . . . M Guard 1 | . . . . . . . . . . . . . . . . . . . . . . . . . . . . . . . . . . 1 Combat Programmer 1 | . . . . . . . . . . . . . . . . . . . . . . . . . . . . . . . . . . 1 Striker 1 | . . . . . . . . . . . . . . . . . . . . . . . . 1 . . . . . . . . . . Executioner 1 | . . . . . . . . . . . . . . . . . . . . . . . . 1 . . . . . . . . . . Subdweller 8 | . . . 8 . . . . . . . . . . . . . . . . . . . . . . . . . . . . . . . Decomposer 3 | . . . . . . . . . . . . 2 . . . . . . . . . 1 . . . . . . . . . . . . Packrat 1 | . . . . . . . . . . . . . . . 1 . . . . . . . . . . . . . . . . . . . Assembled 4 | . . . . . . . . . . . . . . . . . . . . . . . . . . 4 . . . . . . . . Thug 4 | . . . . . . . . . . . . . . . . . . . . . . . 3 . . . . . . . . . . 1 Savage 1 | . . . . . 1 . . . . . . . . . . . . . . . . . . . . . . . . . . . . . Mutant 4 | . . . . . . . . . . . . 1 . . . . . . . . . 2 . . . . . 1 . . . . . . Infiltrator 1 | . . . . . . . . . . . . . . . . . . . . . 1 . . . . . . . . . . . . . Best Kill Streak 13 | . 2 2 2 7 4 12 4 4 4 4 6 3 3 . 3 1 4 . 2 4 12 5 2 9 2 4 4 3 . 4 8 . 13 8 Combat Bots Only 10 | . 2 2 2 6 4 10 4 3 4 4 5 3 3 . 3 1 4 . 1 4 7 5 2 9 2 4 4 3 . 4 5 . 10 7 Max Kills in Single Turn 6 | . 1 2 2 4 2 3 3 2 4 1 3 2 2 . 2 1 1 . 1 1 4 4 1 4 1 4 4 2 . 2 5 . 3 6 Gunslinging 1 | . . 1 1 . . . . 1 . . . . . . . . . . . . . . . . . 1 . 1 . . . . . . Exploded 5 | . . . 1 4 2 2 3 1 4 1 3 2 2 . 2 . . . . . 3 4 . 4 1 3 4 1 . 2 4 . 3 5 Melee . | . . . . . . . . . . . . . . . . . . . . . . . . . . . . . . . . . . . Uniques/NPCs Destroyed 1 | . . . . . . . . . . . . . . . . . . . . . . . . . . . . . . . . . . 1 MAIN.C (-1/Command) Combat | -11 -10 -10 -10 -8 -8 -8 -8 -8 -8 -8 -7 -7 -7 -7 -6 -6 -6 -6 -6 -6 -5 -5 -5 -5 -4 -4 -4 -4 -4 -3 -3 -2 -1 -1 -------- Run | Jun Mat Min Sub Mat Gar Mat Gar Mat Gar Mat Fac Low Low Dat Pro Fac Ext Cet Arc Hub Fac Upp Upp War Pro Fac Upp Upp Zhi Pro Res Res Acc Com Damage Taken 17042 | . 149 55 640 758 862 532 1207 905 462 262 474 185 172 . 276 30 544 41 . 776 871 229 423 237 486 966 304 231 . 644 1206 . 1609 1506 Core 1336 | . 27 . 61 55 122 47 142 32 45 35 70 14 8 . 13 . 62 . . 45 61 . 47 23 40 87 . 4 . 18 68 . 58 152 Absorbed by Shields 5368 | . . . . 39 229 . 54 . 48 36 88 32 48 . 76 . 429 . . 232 127 87 154 103 119 489 107 100 . 242 925 . 769 835 Reduced by Siege Mode 226 | . . . . . . . . . . . . . . . . . . . . . . . 13 . . 24 12 2 . 24 24 . 92 35 Regen/Repaired (Parts) 2927 | . 52 . . 155 . . . 642 . . 95 . . . . . . . . . 1120 . . 386 . . . . . . . . . 477 Core Remaining (%) 80 | 100 . . 64 . . . . . . 13 . . . . 85 . . . . 87 . . . . 82 . . . . 90 94 100 . 86 Volleys Fired 1079 | . 50 5 37 74 61 55 56 67 25 30 20 14 10 . 21 11 28 . 77 36 51 25 22 25 26 39 16 12 12 16 71 5 46 36 Largest 3 | . 2 2 2 3 3 3 2 2 2 2 3 3 3 . 3 3 3 . 3 3 3 3 3 3 3 3 3 3 1 3 3 1 2 2 Hottest 248 | . 90 90 130 175 172 172 122 122 122 122 196 221 240 . 240 240 240 . 240 240 240 240 248 225 225 225 225 225 75 225 225 66 126 80 Shots Fired 2210 | . 95 10 72 194 139 102 101 131 45 58 56 35 20 . 31 27 82 . 80 107 132 56 66 50 57 105 46 33 12 36 128 5 52 47 Gun 1949 | . 95 10 71 189 129 94 91 127 41 57 54 32 15 . 23 24 82 . 80 107 123 54 66 46 50 99 45 32 12 30 71 . . . Cannon 137 | . . . . . . . . . . . . . . . . 3 . . . . 6 . . . 1 4 . . . 3 50 5 47 18 Launcher 76 | . . . 1 5 10 8 10 4 4 1 2 3 5 . 8 . . . . . 3 2 . . . . 1 . . 3 . . 5 1 Special 48 | . . . . . . . . . . . . . . . . . . . . . . . . 4 6 2 . 1 . . 7 . . 28 Kinetic 161 | . 31 . . . . . . . . . . . . . . . . . . . . . . . . . . . . . 72 5 35 18 Thermal 1908 | . 64 10 71 189 129 94 91 127 41 57 54 32 15 . 23 27 82 . 80 107 129 54 66 46 51 103 45 32 12 33 44 . . . Explosive 123 | . . . 1 5 10 8 10 4 4 1 2 3 5 . 8 . . . . . 3 2 . 4 6 2 1 1 . 3 7 . 5 28 Electromagnetic 17 | . . . . . . . . . . . . . . . . . . . . . . . . . . . . . . . 5 . 12 . Robot Hit Streak 51 | . 12 4 11 16 22 7 8 9 24 10 6 10 9 . 18 15 27 . 12 16 20 20 9 8 14 12 16 14 11 16 24 . 51 8 Robot Miss Streak 13 | . 6 1 3 5 2 4 3 3 2 1 6 6 2 . 4 3 5 . 5 2 4 10 3 2 3 4 7 1 1 13 5 . 1 1 Penetration Max 1 | . . . . . . . . . . . . . . . . . . . . . . . . . . . . . . . 1 . . . Secondary Targets 22 | . . 1 1 3 2 . 1 2 . . 1 . . . . . 2 . . 1 1 . 1 1 1 3 . 1 . . . . . . Max Gunslinging Chain 1 | . . 1 1 1 1 . 1 1 . . 1 . . . . . 1 . . 1 1 . 1 1 1 1 . 1 . . . . . . Shots Hit Robots 1535 | . 64 8 49 116 93 59 60 82 27 42 38 16 15 1 22 19 105 . 46 88 89 49 41 47 38 69 35 24 14 16 85 . 41 37 Core Hits 1037 | . 22 2 19 67 43 35 50 36 21 23 28 15 21 . 19 16 62 . 24 61 63 46 15 34 18 45 18 11 2 15 87 . 42 77 Critical Kills 6 | . . . . . . . . . . . . . . . . . . . . . 4 . 2 . . . . . . . . . . . Critical Parts Destroyed 11 | . . . . 1 . . . . . . . . . . . . . . . 1 4 1 1 . . . . . . . 3 . . . Critical Strikes 99 | . 2 . 3 5 8 5 6 10 5 2 1 1 . . 1 . . . 8 1 9 1 3 5 2 5 . 4 . . 6 . 4 2 Burn 71 | . 2 . 3 4 8 5 6 10 5 2 1 1 . . 1 . . . 8 . . . . 4 2 5 . 3 . . 1 . . . Destroy 18 | . . . . 1 . . . . . . . . . . . . . . . 1 9 1 3 . . . . . . . 3 . . . Blast 5 | . . . . . . . . . . . . . . . . . . . . . . . . . . . . . . . 1 . 4 . Sever 5 | . . . . . . . . . . . . . . . . . . . . . . . . 1 . . . 1 . . 1 . . 2 Melee Attacks 153 | . . . 40 2 4 . 2 . . . 2 13 3 1 5 2 35 . . . 2 11 1 20 . 4 . 3 3 . . . . . Impact 52 | . . . 2 . 4 . 2 . . . 2 13 3 . 4 2 . . . . 2 1 1 9 . 4 . 3 . . . . . . Slashing 39 | . . . 38 1 . . . . . . . . . . . . . . . . . . . . . . . . . . . . . . Piercing . | . . . . . . . . . . . . . . . . . . . . . . . . . . . . . . . . . . . Sneak Attacks 64 | . . . 2 1 . . . . . . . . . 1 1 . 35 . . . . 10 . 11 . . . . 3 . . . . . Combat Hostiles . | . . . . . . . . . . . . . . . . . . . . . . . . . . . . . . . . . . . Follow-up Attacks . | . . . . . . . . . . . . . . . . . . . . . . . . . . . . . . . . . . . Damage Inflicted 57668 | . 811 110 790 2637 2337 2071 2231 2110 1062 900 1149 578 770 . 1234 430 1916 . 1052 2332 3237 1690 1100 3112 1339 2375 947 885 368 841 6457 . 4399 6398 Guns 28742 | . 788 98 713 2078 1742 1202 1170 1734 525 798 776 323 281 . 433 404 1895 . 1026 2275 2098 975 1100 712 718 1521 779 481 368 405 1324 . . . Cannons 5585 | . . . . . . . . . . . . . . . . . . . . . . . . . . . . . . . 2092 . 2386 1107 Explosions 20659 | . . . 77 545 587 854 1034 369 537 97 367 255 489 . 801 . . . . . 1061 715 . 2192 355 730 168 363 . 436 2585 . 1967 4075 Melee . | . . . . . . . . . . . . . . . . . . . . . . . . . . . . . . . . . . . Ramming 571 | . 23 12 . 14 8 15 27 7 . 5 6 . . . . 26 21 . 26 57 78 . . . . 14 . . . . 121 . 46 65 Kinetic 6233 | . 321 . . . . . . . . . . . . . . . . . . . . . . . . . . . . . 2647 . 2158 1107 Thermal 27748 | . 467 98 713 2078 1742 1202 1170 1734 525 798 776 323 281 . 433 404 1895 . 1026 2275 2098 975 1100 712 718 1521 779 481 368 405 651 . . . Explosive 20582 | . . . 77 545 587 854 1034 369 537 97 367 255 489 . 801 . . . . . 1061 715 . 2192 355 730 168 363 . 436 2585 . 1890 4075 Electromagnetic 423 | . . . . . . . . . . . . . . . . . . . . . . . . . . . . . . . 118 . 305 . Impact . | . . . . . . . . . . . . . . . . . . . . . . . . . . . . . . . . . . . Slashing 2111 | . . . . . . . . . . . . . . . . . . . . . . . . 208 266 110 . 41 . . 335 . . 1151 Piercing . | . . . . . . . . . . . . . . . . . . . . . . . . . . . . . . . . . . . Highest Corruption 8 | . . . . . 5 5 5 6 6 6 . . 1 . . 1 . 8 8 1 1 . . . . 2 1 3 . . 2 . . . Average Corruption 4 | . . . . . 4 5 5 5 6 6 . . 1 . . 1 . 8 6 1 1 . . . . 1 1 1 . . 1 . . . Corruption Purged 17 | . . . . . . . . . . . . . 1 . . 1 . . 8 . 1 . . . . 2 1 3 . . . . . . Corruption Blocked 134 | . . . . . . . . . . . . . . . . . . . . . . . . . . . . . . . . 45 7 82 Effects 186 | . . . . . 4 19 29 51 35 19 . . . . . 1 . 6 9 3 . . . . . 2 . 2 . . 6 . . . Message Errors 41 | . . . . . . 1 4 14 14 4 . . . . . . . 1 . 1 . . . . . . . . . . 2 . . . Matter Fused 32 | . . . . . . 4 11 8 2 2 . . . . . . . 1 2 . . . . . . 2 . . . . . . . . Heat Flow Errors 21 | . . . . . 1 4 3 6 3 1 . . . . . . . 1 . . . . . . . . . 1 . . 1 . . . Energy Discharges 21 | . . . . . 1 2 . 6 5 5 . . . . . . . . 1 . . . . . . . . . . . 1 . . . Parts Fused 3 | . . . . . . 1 . . . 1 . . . . . . . 1 . . . . . . . . . . . . . . . . Data Loss (minor) 31 | . . . . . . 4 7 7 4 2 . . . . . . . 2 3 1 . . . . . . . . . . 1 . . . Data Loss (major) 12 | . . . . . 2 . 2 1 4 . . . . . . 1 . . . 1 . . . . . . . . . . 1 . . . Misfires 10 | . . . . . . 1 . 4 1 1 . . . . . . . . 2 . . . . . . . . 1 . . . . . . Alerts 5 | . . . . . . . 1 2 1 1 . . . . . . . . . . . . . . . . . . . . . . . . Weapon Failures 10 | . . . . . . 2 1 3 1 2 . . . . . . . . 1 . . . . . . . . . . . . . . . Overload Shots 1 | . . . . 1 . . . . . . . . . . . . . . . . . . . . . . . . . . . . . . Overflow Damage 1030 | . . . . . 6 58 31 . 3 . 18 . 31 . . . . . . . 104 12 . 15 32 15 . . . 2 85 . 442 176 Projectiles 538 | . . . . . . . . . . . . . . . . . . . . . . . . . 15 . . . . . 14 . 366 143 Explosions 436 | . . . . . 6 58 31 . 3 . 18 . 31 . . . . . . . 104 12 . 15 17 15 . . . 2 34 . 62 28 Melee 56 | . . . . . . . . . . . . . . . . . . . . . . . . . . . . . . . 37 . 14 5 Knockbacks 34 | . . 1 . . . . . . . . . . . . . 1 . . . . . . . . . . . . . . 23 . 6 3 Impact 3 | . . 1 . . . . . . . . . . . . . 1 . . . . . . . . . . . . . . . . 1 . Kinetic 26 | . . . . . . . . . . . . . . . . . . . . . . . . . . . . . . . 18 . 5 3 Secondary 5 | . . . . . . . . . . . . . . . . . . . . . . . . . . . . . . . 5 . . . Self-Inflicted Damage 573 | . . . 9 12 88 64 148 26 . . 43 . . . . . . . . . . 47 . . . . 28 . . 37 . . 40 31 Shots 25 | . . . 1 1 4 2 6 1 . . 2 . . . . . . . . . . 2 . . . . 1 . . 2 . . 2 1 Rammed 38 | . 7 . . 3 . 2 2 1 . 1 1 . . . . 1 3 . 1 2 4 . . . . 1 . . . . 6 . 2 1 Targets Rammed 43 | . 7 1 . 3 1 2 2 1 . 1 1 . . . . 1 4 . 1 3 4 . . . . 1 . . . . 7 . 2 1 Kicked 1 | . . . . . 1 . . . . . . . . . . . . . . . . . . . . . . . . . . . . . Crushed 4 | . . 1 . . . . . . . . . . . . . . 1 . . 1 . . . . . . . . . . 1 . . . Highest Temperature 333 | . 153 180 240 333 279 285 271 251 193 190 95 90 102 . 102 116 316 122 126 295 191 198 198 200 200 163 45 62 . . 29 . . 52 Average Temperature 87 | . 44 80 77 102 99 92 70 97 107 117 44 36 53 . 49 57 117 73 43 99 89 67 102 133 122 30 21 21 . . 29 . . 24 Received Heat Transfer 3084 | . 90 30 90 315 139 153 520 342 72 123 110 . 59 . . . 178 . . 222 104 30 50 10 24 18 27 43 . 9 157 . 107 62 Effects 17 | . . . . 6 3 . . . . . . . . . . . 1 . . . . . . . 7 . . . . . . . . . Energy Bleed 4 | . . . . 2 . . . . . . . . . . . . . . . . . . . . 2 . . . . . . . . . Interference 13 | . . . . 4 3 . . . . . . . . . . . 1 . . . . . . . 5 . . . . . . . . . Siege Activations 22 | . . . . . . . . . . . . . . . . . . . . . . 1 1 . 2 3 2 1 . 1 7 . 3 1 Total Turns 375 | . . . . . . . . . . . . . . . . . . . . . . 14 17 . 36 49 25 25 . 32 102 . 46 29 Longest Duration 32 | . . . . . . . . . . . . . . . . . . . . . . 14 17 . 21 29 23 25 . 32 27 . 26 29 Robots Corrupted 3 | . . . . . . . . . . . . . . . . . . . . . . . . . . . . . . . 1 . 2 . Combat Hostiles 3 | . . . . . . . . . . . . . . . . . . . . . . . . . . . . . . . 1 . 2 . Parts Fried 5 | . . . . 4 . . . . . . . . . . . . . . . . . . . . . . . . . . 1 . . . Impact Corruptions 3 | . . . . . . . . . . . . . . . . . . . . . . . . . . . . . . . 1 . 1 1 Robots Melted 10 | . . . . . 3 . . 1 1 . . . . . . . 1 . 1 1 1 . . 1 . . . . . . . . . . Combat Hostiles 9 | . . . . . 3 . . 1 1 . . . . . . . 1 . . 1 1 . . 1 . . . . . . . . . . Parts Melted 149 | . 1 . 1 7 19 5 2 7 . 2 1 . 5 . . 8 15 . 3 18 15 5 8 . 2 13 2 7 . . 3 . . . Heat Transferred 56497 | . 1422 248 1986 4347 3827 2516 2479 3848 1369 1702 1575 694 561 . 970 875 4213 . 2457 4663 3675 1659 1554 1310 1369 2923 1258 1073 407 555 962 . . . Parts Sabotaged . | . . . . . . . . . . . . . . . . . . . . . . . . . . . . . . . . . . . Parts Stolen . | . . . . . . . . . . . . . . . . . . . . . . . . . . . . . . . . . . . Parts Stripped . | . . . . . . . . . . . . . . . . . . . . . . . . . . . . . . . . . . . Power Chain Reactions . | . . . . . . . . . . . . . . . . . . . . . . . . . . . . . . . . . . . Missiles Intercepted 5 | . . . . . . . . . . . . . . . . . . . . . . . . . . . . . . . . . . 5 Alert | -11 -10 -10 -10 -8 -8 -8 -8 -8 -8 -8 -7 -7 -7 -7 -6 -6 -6 -6 -6 -6 -5 -5 -5 -5 -4 -4 -4 -4 -4 -3 -3 -2 -1 -1 ------- Run | Jun Mat Min Sub Mat Gar Mat Gar Mat Gar Mat Fac Low Low Dat Pro Fac Ext Cet Arc Hub Fac Upp Upp War Pro Fac Upp Upp Zhi Pro Res Res Acc Com Peak Influence 1348 | . 104 63 . 476 1266 750 1348 657 867 454 315 . . . . 74 679 690 291 251 556 . . . . 454 . . . . 753 423 854 995 Initial 657 | . . . . . 170 616 419 657 312 422 111 . . . . . 4 380 276 . 72 . . . . . . . . . 450 423 3 493 Average 301 | . 40 42 . 192 695 607 932 359 667 289 170 . . . . 32 218 541 48 110 161 . . . . 161 . . . . 520 187 342 804 Maximum Alert Level 4 | . . . . 2 4 3 4 2 3 2 1 . . . . . 2 2 1 1 2 . . . . 2 . . . . 3 2 3 3 Low Security (%) 47 | 100 100 100 . 48 3 . . 9 . 33 69 . . . . 100 54 . 86 88 71 . . . . 65 . . . . . 48 45 . Level 1 19 | . . . . 46 16 2 . 54 5 29 30 . . . . . 25 14 13 11 8 . . . . 31 . . . . 22 25 16 . Level 2 20 | . . . . 4 26 88 22 36 35 37 . . . . . . 20 85 . . 19 . . . . 3 . . . . 64 25 8 29 Level 3 10 | . . . . . 45 9 38 . 58 . . . . . . . . . . . . . . . . . . . . . 12 . 30 70 Level 4 2 | . . . . . 7 . 38 . . . . . . . . . . . . . . . . . . . . . . . . . . . Level 5 . | . . . . . . . . . . . . . . . . . . . . . . . . . . . . . . . . . . . High Security . | . . . . . . . . . . . . . . . . . . . . . . . . . . . . . . . . . . . Max Security . | . . . . . . . . . . . . . . . . . . . . . . . . . . . . . . . . . . . Squads Dispatched 58 | . 1 . . 3 . 4 . 2 . 1 2 . . . . 4 3 . . 5 5 . . . . 4 . . . . 9 4 6 5 Investigation 12 | . . . . 2 . 1 . 1 . 1 . . . . . 1 2 . . . 1 . . . . 1 . . . . . . 2 . Extermination 14 | . . . . . . . . . . . 1 . . . . 1 . . . 3 2 . . . . 1 . . . . 3 . 1 2 Reinforcement 20 | . 1 . . 1 . 2 . 1 . . . . . . . 2 1 . . 2 1 . . . . . . . . . 2 4 1 2 Assault 5 | . . . . . . . . . . . 1 . . . . . . . . . 1 . . . . . . . . . 1 . 1 1 Garrison 7 | . . . . . . 1 . . . . . . . . . . . . . . . . . . . 2 . . . . 3 . 1 . Intercept . | . . . . . . . . . . . . . . . . . . . . . . . . . . . . . . . . . . . Searches Triggered 2 | . . . . . . . . . . . . . . . . . . . . . . . . . . . . . . . 2 . . . Data Miner Redirects 7 | . . . . . . . . . . . . . . . . 1 2 . . . 1 . . . . 2 . . . . . . 1 . Construction Impeded 3 | . . . . . . 1 . . . . . . . . . . . . . . . . . . . . . . . . 1 . 1 . Haulers Reinforced 7 | . . . . . . . . . . . . . . . . 1 . . . 1 1 . . . . . . . . . 1 3 . . Active Scanning Responses . | . . . . . . . . . . . . . . . . . . . . . . . . . . . . . . . . . . . Cargo Convoy Interrupts . | . . . . . . . . . . . . . . . . . . . . . . . . . . . . . . . . . . . Stealth | -11 -10 -10 -10 -8 -8 -8 -8 -8 -8 -8 -7 -7 -7 -7 -6 -6 -6 -6 -6 -6 -5 -5 -5 -5 -4 -4 -4 -4 -4 -3 -3 -2 -1 -1 --------- Run | Jun Mat Min Sub Mat Gar Mat Gar Mat Gar Mat Fac Low Low Dat Pro Fac Ext Cet Arc Hub Fac Upp Upp War Pro Fac Upp Upp Zhi Pro Res Res Acc Com Distress Signals 42 | . 1 . . 2 . 1 . 2 . . . . . . . . 2 2 . . . . . 2 . 2 . . . . 2 13 2 11 Communications Jammed . | . . . . . . . . . . . . . . . . . . . . . . . . . . . . . . . . . . . Distress Signals . | . . . . . . . . . . . . . . . . . . . . . . . . . . . . . . . . . . . Times Spotted 616 | . 16 4 17 40 24 27 30 25 17 14 17 7 7 . 5 6 38 12 41 19 30 10 13 36 7 32 8 4 . 7 42 3 27 31 Peak Tracking Total 12 | . 2 2 3 4 6 4 6 4 6 4 5 4 3 . 3 2 4 5 2 4 5 5 4 12 3 6 4 3 . 4 6 2 7 6 Tactical Retreats 25 | . . . 1 . . 1 1 . 1 . 3 1 . . . . 4 . . . 2 . 3 . . 2 . . . . 2 . 2 2 Traps | -11 -10 -10 -10 -8 -8 -8 -8 -8 -8 -8 -7 -7 -7 -7 -6 -6 -6 -6 -6 -6 -5 -5 -5 -5 -4 -4 -4 -4 -4 -3 -3 -2 -1 -1 ------- Run | Jun Mat Min Sub Mat Gar Mat Gar Mat Gar Mat Fac Low Low Dat Pro Fac Ext Cet Arc Hub Fac Upp Upp War Pro Fac Upp Upp Zhi Pro Res Res Acc Com Traps Triggered 18 | . 2 . 1 1 3 . 2 1 1 . . . . . . 1 2 . . . 2 . . . . . . . . . . . 1 1 Indirectly . | . . . . . . . . . . . . . . . . . . . . . . . . . . . . . . . . . . . Trap Hack Attempts 38 | . . . . 10 28 . . . . . . . . . . . . . . . . . . . . . . . . . . . . . Triggered . | . . . . . . . . . . . . . . . . . . . . . . . . . . . . . . . . . . . Disarmed 3 | . . . . . 3 . . . . . . . . . . . . . . . . . . . . . . . . . . . . . Reprogrammed 3 | . . . . 3 . . . . . . . . . . . . . . . . . . . . . . . . . . . . . . Reused 1 | . . . . 1 . . . . . . . . . . . . . . . . . . . . . . . . . . . . . . Traps Extracted . | . . . . . . . . . . . . . . . . . . . . . . . . . . . . . . . . . . . Installed . | . . . . . . . . . . . . . . . . . . . . . . . . . . . . . . . . . . . Triggered 13 | . . . . 1 . . . . . . . . . . . . . . . . . . . 11 . . . . . 1 . . . . Most Traps Carried 1 | . . . . . . . . . . . . . . . . . . . . . . . . . 1 . . . . . . . . . Machines | -11 -10 -10 -10 -8 -8 -8 -8 -8 -8 -8 -7 -7 -7 -7 -6 -6 -6 -6 -6 -6 -5 -5 -5 -5 -4 -4 -4 -4 -4 -3 -3 -2 -1 -1 ---------- Run | Jun Mat Min Sub Mat Gar Mat Gar Mat Gar Mat Fac Low Low Dat Pro Fac Ext Cet Arc Hub Fac Upp Upp War Pro Fac Upp Upp Zhi Pro Res Res Acc Com Machines Disabled 42 | . . 1 1 3 9 1 4 1 2 . 1 1 . . . . . 1 3 1 3 1 . . . 2 . 1 . . 2 . 2 2 Max in Single Turn 2 | . . . 1 1 1 1 1 1 1 . 1 1 . . . . . . 1 1 2 1 . . . 1 . 1 . . 1 . 1 1 Garrison Access 6 | . . . . . . . . . . . 1 . . . . . . . . . 2 . . . . . . . . . . 1 2 . Garrison Relay 12 | . . . . . 7 . 3 . 2 . . . . . . . . . . . . . . . . . . . . . . . . . Network Hub 2 | . . . . . . . . . . . . . . . . . . . . 2 . . . . . . . . . . . . . . Machines Repaired . | . . . . . . . . . . . . . . . . . . . . . . . . . . . . . . . . . . . Machines Sabotaged . | . . . . . . . . . . . . . . . . . . . . . . . . . . . . . . . . . . . Overloaded Fab Kills . | . . . . . . . . . . . . . . . . . . . . . . . . . . . . . . . . . . . Hacking | -11 -10 -10 -10 -8 -8 -8 -8 -8 -8 -8 -7 -7 -7 -7 -6 -6 -6 -6 -6 -6 -5 -5 -5 -5 -4 -4 -4 -4 -4 -3 -3 -2 -1 -1 --------- Run | Jun Mat Min Sub Mat Gar Mat Gar Mat Gar Mat Fac Low Low Dat Pro Fac Ext Cet Arc Hub Fac Upp Upp War Pro Fac Upp Upp Zhi Pro Res Res Acc Com Machines Accessed 109 | . 6 . 1 13 4 5 1 11 2 4 3 2 1 3 . 7 6 1 1 3 11 1 1 . . 4 . . 4 1 7 . 3 3 Terminals 64 | . 5 . . 9 4 3 1 7 2 4 1 1 . . . 1 6 1 . 3 4 . 1 . . 3 . . . 1 5 . . 2 Fabricators 7 | . . . . . . . . . . . . . . . . 3 . . . . 3 . . . . 1 . . . . . . . . Repair Stations 9 | . 1 . . 2 . 1 . 2 . . 1 . . . . . . . . . 1 . . . . . . . . . . . . 1 Recycling Units 4 | . . . . . . . . . . . . . . . . 2 . . . . . . . . . . . . . . 1 . 1 . Scanalyzers 5 | . . . . 1 . . . 1 . . . . . . . 1 . . . . 1 . . . . . . . . . 1 . . . Garrison Access 8 | . . . . 1 . 1 . 1 . . 1 . . . . . . . . . 2 . . . . . . . . . . . 2 . Total Hacks 351 | . 17 . 1 43 9 13 3 36 7 15 9 6 1 24 . 12 15 1 3 6 57 1 2 . . 17 . . 17 1 24 . 4 7 Successful 185 | . 8 . 1 17 5 6 . 22 . 7 3 6 1 24 . 5 2 1 3 3 27 1 2 . . 9 . . 17 1 8 . 2 4 Failed 165 | . 9 . . 25 4 7 3 14 7 8 6 . . . . 7 13 . . 3 30 . . . . 8 . . . . 16 . 2 3 Catastrophic 48 | . 1 . . 8 . 3 1 3 2 . . . . . . 2 3 . . 1 9 . . . . 3 . . . . 9 . 2 1 Database Lockouts 1 | . . . . 1 . . . . . . . . . . . . . . . . . . . . . . . . . . . . . . Manual 155 | . 13 . . 23 2 10 . 15 . 7 3 . . . . 6 10 1 . 4 30 . . 1 . 15 . . . . 15 . . . Terminals 202 | . 15 . . 30 9 7 3 19 7 15 2 1 . . . 2 15 1 . 6 31 . 2 . . 13 . . . 1 19 . . 4 Fabricators 15 | . . . . . . . . . . . . . . . . 4 . . . . 7 . . . . 4 . . . . . . . . Repair Stations 39 | . 2 . . 5 . 2 . 9 . . 4 . . . . . . . . . 14 . . . . . . . . . . . . 3 Recycling Units 8 | . . . . . . . . . . . . . . . . 3 . . . . . . . . . . . . . . 4 . 1 . Scanalyzers 11 | . . . . 2 . . . 4 . . . . . . . 3 . . . . 1 . . . . . . . . . 1 . . . Garrison Access 24 | . . . . 6 . 4 . 4 . . 3 . . . . . . . . . 4 . . . . . . . . . . . 3 . Terminal Hacks 112 | . 5 . 1 9 4 2 . 8 . 6 1 6 1 24 . 1 1 1 3 1 10 1 2 . . 3 . . 17 1 2 . . 2 Record 23 | . . . . . . . . . . . . 6 . 6 . . . . 3 . . . 2 . . . . . 5 1 . . . . Part Schematic 16 | . 1 . . . . . . . . . . . . 9 . . . . . . 1 . . . . 1 . . 4 . . . . . Robot Schematic 6 | . . . . . . . . . . . . . . 6 . . . . . . . . . . . . . . . . . . . . Robot Analysis 11 | . 3 . . 2 . . . 1 . . . . . . . 1 . . . . . . . . . . . . 4 . . . . . Prototype ID Bank 9 | . 1 . . . . . . . . 1 . . . 3 . . . . . . . . . . . . . . 4 . . . . . Open Door 5 | . . . . . 1 . . . . . . . 1 . . . . 1 . . . 1 . . . . . . . . . . . 1 Branch Access Points 4 | . . . . 1 . . . . . 1 . . . . . . . . . . 1 . . . . 1 . . . . . . . . Emergency Access Points 1 | . . . . . 1 . . . . . . . . . . . . . . . . . . . . . . . . . . . . . Terminal Index 1 | . . . . . . . . . . . . . . . . . . . . . . . . . . 1 . . . . . . . . Repair Station Index 1 | . . . . . . . . 1 . . . . . . . . . . . . . . . . . . . . . . . . . . Unreport Threat 15 | . . . . 3 . 2 . 3 . 2 1 . . . . . . . . . 4 . . . . . . . . . . . . . Locate Traps 5 | . . . . 1 . . . 1 . . . . . . . . 1 . . . 1 . . . . . . . . . 1 . . . Recall Extermination 1 | . . . . . . . . . . . . . . . . . . . . . . . . . . . . . . . 1 . . . Registered Components 4 | . . . . 1 . . . 1 . 1 . . . . . . . . . . 1 . . . . . . . . . . . . . Zone Layout 6 | . . . . 1 . . . 1 . 1 . . . . . . . . . 1 2 . . . . . . . . . . . . . Garrison Registry 1 | . . . . . 1 . . . . . . . . . . . . . . . . . . . . . . . . . . . . . Patrol Navigation 1 | . . . . . 1 . . . . . . . . . . . . . . . . . . . . . . . . . . . . . Derelict Proto ID Bank 1 | . . . 1 . . . . . . . . . . . . . . . . . . . . . . . . . . . . . . . Disengage Seal 1 | . . . . . . . . . . . . . . . . . . . . . . . . . . . . . . . . . . 1 Fabricator Hacks 1 | . . . . . . . . . . . . . . . . . . . . . 1 . . . . . . . . . . . . . Network Status 1 | . . . . . . . . . . . . . . . . . . . . . 1 . . . . . . . . . . . . . Repair Station Hacks 29 | . 2 . . 4 . 1 . 8 . . 2 . . . . . . . . . 10 . . . . . . . . . . . . 2 Scan Component 15 | . 1 . . 2 . 1 . 4 . . 1 . . . . . . . . . 5 . . . . . . . . . . . . 1 Repair 14 | . 1 . . 2 . . . 4 . . 1 . . . . . . . . . 5 . . . . . . . . . . . . 1 Recycling Unit Hacks 3 | . . . . . . . . . . . . . . . . 1 . . . . . . . . . . . . . . 1 . 1 . Process 1 | . . . . . . . . . . . . . . . . . . . . . . . . . . . . . . . . . 1 . Retrieve Components 2 | . . . . . . . . . . . . . . . . 1 . . . . . . . . . . . . . . 1 . . . Scanalyzer 8 | . . . . 2 . . . 4 . . . . . . . 1 . . . . . . . . . . . . . . 1 . . . Insert Component 5 | . . . . 1 . . . 2 . . . . . . . 1 . . . . . . . . . . . . . . 1 . . . Analyze 3 | . . . . 1 . . . 2 . . . . . . . . . . . . . . . . . . . . . . . . . . Garrison Access Hacks 5 | . . . . 1 . 1 . 1 . . . . . . . . . . . . 1 . . . . . . . . . . . 1 . Unlock Access 3 | . . . . 1 . 1 . 1 . . . . . . . . . . . . . . . . . . . . . . . . . . Seal Access 2 | . . . . . . . . . . . . . . . . . . . . . 1 . . . . . . . . . . . 1 . Unauthorized Hacks 27 | . 1 . . 1 1 2 . 1 . 1 . . . . . 2 1 . . 2 5 . . . . 6 . . . . 4 . . . Terminals 19 | . 1 . . 1 1 1 . 1 . 1 . . . . . 1 1 . . 2 3 . . . . 4 . . . . 2 . . . Track 2 | . . . . . . . . . . . . . . . . . . . . 1 . . . . . 1 . . . . . . . . Assimilate 3 | . . . . . . . . . . . . . . . . . . . . . 1 . . . . 1 . . . . 1 . . . Botnet 10 | . 1 . . 1 . 1 . 1 . 1 . . . . . 1 . . . 1 1 . . . . 1 . . . . 1 . . . Disrupt 3 | . . . . . 1 . . . . . . . . . . . 1 . . . . . . . . 1 . . . . . . . . Operators 1 | . . . . . . . . . . . . . . . . . . . . . 1 . . . . . . . . . . . . . Fabricators 3 | . . . . . . . . . . . . . . . . . . . . . 1 . . . . 2 . . . . . . . . Liberate 1 | . . . . . . . . . . . . . . . . . . . . . . . . . . 1 . . . . . . . . Fabnet 2 | . . . . . . . . . . . . . . . . . . . . . 1 . . . . 1 . . . . . . . . Repair Stations . | . . . . . . . . . . . . . . . . . . . . . . . . . . . . . . . . . . . Recycling Units 3 | . . . . . . . . . . . . . . . . 1 . . . . . . . . . . . . . . 2 . . . Reject 2 | . . . . . . . . . . . . . . . . 1 . . . . . . . . . . . . . . 1 . . . Mask 1 | . . . . . . . . . . . . . . . . . . . . . . . . . . . . . . . 1 . . . Scanalyzers . | . . . . . . . . . . . . . . . . . . . . . . . . . . . . . . . . . . . Garrison Access 2 | . . . . . . 1 . . . . . . . . . . . . . . 1 . . . . . . . . . . . . . Reprogram 1 | . . . . . . 1 . . . . . . . . . . . . . . . . . . . . . . . . . . . . Jam 1 | . . . . . . . . . . . . . . . . . . . . . 1 . . . . . . . . . . . . . Data Cores Recovered 3 | . . . . . . . . . . 1 . . . . . 1 . . . . . . . . . 1 . . . . . . . . Used 1 | . . . . . . . . . . . . . . . . . . . . . . . . . . 1 . . . . . . . . Hacking Detections 86 | . 6 . . 13 4 5 1 10 2 4 3 . . . . 6 6 1 . 3 8 . . . . 4 . . . . 7 . 1 2 Full Trace Events 10 | . . . . 2 1 . 1 1 1 1 . . . . . . 1 . . . . . . . . 1 . . . . . . 1 . Feedback Events 1 | . . . . . 1 . . . . . . . . . . . . . . . . . . . . . . . . . . . . . Hackware Fried 1 | . . . . . 1 . . . . . . . . . . . . . . . . . . . . . . . . . . . . . Feedback Blocked . | . . . . . . . . . . . . . . . . . . . . . . . . . . . . . . . . . . . Robot Schematics Acquired 6 | . . . . . . . . . . . . . . 6 . . . . . . . . . . . . . . . . . . . . Robots Built . | . . . . . . . . . . . . . . . . . . . . . . . . . . . . . . . . . . . Authchips . | . . . . . . . . . . . . . . . . . . . . . . . . . . . . . . . . . . . Time . | . . . . . . . . . . . . . . . . . . . . . . . . . . . . . . . . . . . Total Robot Build Rating . | . . . . . . . . . . . . . . . . . . . . . . . . . . . . . . . . . . . Part Schematics Acquired 19 | . 1 . . 1 . . . 2 . . . . . 9 . . . . . . 1 . . . . 1 . . 4 . . . . . Parts Built . | . . . . . . . . . . . . . . . . . . . . . . . . . . . . . . . . . . . Authchips . | . . . . . . . . . . . . . . . . . . . . . . . . . . . . . . . . . . . Time . | . . . . . . . . . . . . . . . . . . . . . . . . . . . . . . . . . . . Total Part Build Rating . | . . . . . . . . . . . . . . . . . . . . . . . . . . . . . . . . . . . Parts Repaired 14 | . 1 . . 2 . . . 4 . . 1 . . . . . . . . . 5 . . . . . . . . . . . . 1 Time 614 | . 26 . . 64 . . . 165 . . 19 . . . . . . . . . 326 . . . . . . . . . . . . 14 Parts Recycled . | . . . . . . . . . . . . . . . . . . . . . . . . . . . . . . . . . . . Recycled Matter 5 | . . . . . . . . . . . . . . . . . . . . . . . . . . . . . . . . . 5 . Retrieved Matter . | . . . . . . . . . . . . . . . . . . . . . . . . . . . . . . . . . . . Retrieved Components 11 | . . . . . . . . . . . . . . . . 1 . . . . . . . . . . . . . . 10 . . . Parts Scanalyzed 4 | . . . . 1 . . . 2 . . . . . . . 1 . . . . . . . . . . . . . . . . . . Part Schematics Acquired 3 | . . . . 1 . . . 2 . . . . . . . . . . . . . . . . . . . . . . . . . . Parts Damaged 1 | . . . . . . . . . . . . . . . . 1 . . . . . . . . . . . . . . . . . . Bothacking | -11 -10 -10 -10 -8 -8 -8 -8 -8 -8 -8 -7 -7 -7 -7 -6 -6 -6 -6 -6 -6 -5 -5 -5 -5 -4 -4 -4 -4 -4 -3 -3 -2 -1 -1 ------------ Run | Jun Mat Min Sub Mat Gar Mat Gar Mat Gar Mat Fac Low Low Dat Pro Fac Ext Cet Arc Hub Fac Upp Upp War Pro Fac Upp Upp Zhi Pro Res Res Acc Com Used RIF Installer . | . . . . . . . . . . . . . . . . . . . . . . . . . . . . . . . . . . . Robots Hacked 17 | . . . . 1 . . . . . . . . . 1 1 . 1 . . . . . . 3 . . . . 3 2 2 2 . 1 Non-combat 1 | . . . . 1 . . . . . . . . . . . . . . . . . . . . . . . . . . . . . . Combat 15 | . . . . . . . . . . . . . . 1 1 . 1 . . . . . . 3 . . . . 3 2 2 2 . . Robot Hacks Applied 10 | . . . . 1 . . . . . . . . . 1 1 . 1 . . . . . . 3 . . . . 3 . . . . . parse_system 9 | . . . . . . . . . . . . . . 1 1 . 1 . . . . . . 3 . . . . 3 . . . . . no_distress 1 | . . . . 1 . . . . . . . . . . . . . . . . . . . . . . . . . . . . . . Manual 1 | . . . . . . . . . . . . . . . . . . . . . . . . . . . . . . . . . . 1 Relay Couplers Released 50 | . . . . . 26 . 10 . 8 . 2 . . . . . . . . . . . . . . . . . . . . 2 2 . Machine Destruction 50 | . . . . . 26 . 10 . 8 . 2 . . . . . . . . . . . . . . . . . . . . 2 2 . Fabnet Peak Effective % 4 | . . . . . . . . . . . . . . . . . . . . . . . . . 3 3 3 3 3 4 4 1 . . Autooverrided 6 | . . . . . . . . . . . . . . . . . . . . . . . . . . . . . . 2 2 2 . . Robots Rewired 35 | . . . . . 2 . 3 . . . . . . . . . 22 . . . . 3 . 5 . . . . . . . . . . Allies Hacked 2 | . . . . . . . . . . . . . . . . . . . . . . . . . . 1 1 . . . . . . . Hacks Repelled . | . . . . . . . . . . . . . . . . . . . . . . . . . . . . . . . . . . . Allies | -11 -10 -10 -10 -8 -8 -8 -8 -8 -8 -8 -7 -7 -7 -7 -6 -6 -6 -6 -6 -6 -5 -5 -5 -5 -4 -4 -4 -4 -4 -3 -3 -2 -1 -1 -------- Run | Jun Mat Min Sub Mat Gar Mat Gar Mat Gar Mat Fac Low Low Dat Pro Fac Ext Cet Arc Hub Fac Upp Upp War Pro Fac Upp Upp Zhi Pro Res Res Acc Com Total Allies 68 | . . 5 . . 2 1 3 . . . . . . . 1 . 35 2 . . 1 3 . 5 . 3 . . . 2 3 2 . . Largest Group 27 | . . 3 2 . 2 1 3 3 . . . . . . 1 1 27 27 15 2 1 3 3 5 5 5 3 . . . 2 1 . . Highest-Rated Group 891 | . . 42 46 . 59 15 48 48 . . . . . . 96 96 881 891 573 43 10 75 75 234 234 234 141 . . . 101 69 . . Highest-Rated Ally 159 | . . 31 31 . 39 15 16 16 . . . . . . 96 96 159 159 150 26 10 25 25 65 65 65 47 . . . 82 69 . . Warlord Squad Rendezvous 1 | . . . . . . . . . . . . . . . . . . . . . 1 . . . . . . . . . . . . . Ghost 1 | . . . . . . . . . . . . . . . . . . . . . 1 . . . . . . . . . . . . . Total Orders 11 | . . . . . . . . . . . . . . . . . . . . 3 . . . 3 2 1 . . . . 2 . . . STAY 7 | . . . . . . . . . . . . . . . . . . . . 3 . . . 2 1 . . . . . 1 . . . FOLLOW 4 | . . . . . . . . . . . . . . . . . . . . . . . . 1 1 1 . . . . 1 . . . Ally Attacks 456 | . . 20 26 . 14 . 3 21 . . . . . . . 13 136 103 30 . . . 14 12 1 44 6 . . 2 5 6 . . Total Damage 10961 | . . 164 446 . 315 . 77 262 . . . . . . . 187 3202 2585 766 . . . 481 323 37 1530 215 . . 38 78 255 . . Kills 85 | . . 2 6 . 1 . . 7 . . . . . . . 1 23 16 6 . . . 4 6 1 11 . . . . . 1 . . Allies Corrupted . | . . . . . . . . . . . . . . . . . . . . . . . . . . . . . . . . . . . Allies Melted 1 | . . . . . . . . . . . . . . . . . . . . . . . . 1 . . . . . . . . . . Intel | -11 -10 -10 -10 -8 -8 -8 -8 -8 -8 -8 -7 -7 -7 -7 -6 -6 -6 -6 -6 -6 -5 -5 -5 -5 -4 -4 -4 -4 -4 -3 -3 -2 -1 -1 ------- Run | Jun Mat Min Sub Mat Gar Mat Gar Mat Gar Mat Fac Low Low Dat Pro Fac Ext Cet Arc Hub Fac Upp Upp War Pro Fac Upp Upp Zhi Pro Res Res Acc Com Robot Analysis Total 11 | . 3 . . 2 . . . 1 . . . . . . . 1 . . . . . . . . . . . . 4 . . . . . Derelict Logs Recovered 15 | . . 1 3 . . . . . . . . 1 1 . 1 . . . . . . 2 2 . 2 . 1 1 . . . . . . Drone Launches . | . . . . . . . . . . . . . . . . . . . . . . . . . . . . . . . . . . . Drone Recoveries . | . . . . . . . . . . . . . . . . . . . . . . . . . . . . . . . . . . . Exploration | -11 -10 -10 -10 -8 -8 -8 -8 -8 -8 -8 -7 -7 -7 -7 -6 -6 -6 -6 -6 -6 -5 -5 -5 -5 -4 -4 -4 -4 -4 -3 -3 -2 -1 -1 ------------- Run | Jun Mat Min Sub Mat Gar Mat Gar Mat Gar Mat Fac Low Low Dat Pro Fac Ext Cet Arc Hub Fac Upp Upp War Pro Fac Upp Upp Zhi Pro Res Res Acc Com Turns Passed 49119 | 5 1209 873 5081 2235 1351 872 1208 1897 1259 562 900 2316 1722 134 1393 940 1911 321 2951 1405 1871 2049 2336 1406 2063 964 1383 830 397 499 1699 1564 924 589 Spaces Moved 23933 | 2 583 522 2819 1013 776 459 420 866 355 243 477 1494 1130 89 861 363 675 141 270 515 829 1177 1335 739 1175 450 808 433 205 265 809 918 453 264 Core 140 | . . . . . . . . . . . . . . . . . . . 140 . . . . . . . . . . . . . . . Treads 22764 | 2 583 522 2819 968 . 251 420 866 355 243 477 1494 1130 89 861 363 675 141 130 515 829 1177 1335 739 1175 450 808 433 205 265 809 918 453 264 Legs 1029 | . . . . 45 776 208 . . . . . . . . . . . . . . . . . . . . . . . . . . . . Wheels . | . . . . . . . . . . . . . . . . . . . . . . . . . . . . . . . . . . . Hover . | . . . . . . . . . . . . . . . . . . . . . . . . . . . . . . . . . . . Flight . | . . . . . . . . . . . . . . . . . . . . . . . . . . . . . . . . . . . Fastest Speed 130 | 160 160 160 160 130 130 130 170 161 170 145 145 145 145 145 145 145 225 160 160 160 160 160 162 162 162 160 160 160 160 157 156 160 160 160 Average Speed 171 | 160 160 160 160 167 130 144 170 169 170 168 145 145 145 145 145 221 232 176 1010 188 166 160 162 162 162 160 160 160 160 157 157 164 162 160 Slowest Speed 1800 | 160 240 160 160 250 130 270 170 170 170 250 145 145 145 145 145 225 240 240 1800 240 320 240 162 162 162 162 160 160 160 160 236 167 165 160 Overloaded Moves . | . . . . . . . . . . . . . . . . . . . . . . . . . . . . . . . . . . . Propulsion Burnouts . | . . . . . . . . . . . . . . . . . . . . . . . . . . . . . . . . . . . Robots Hopped . | . . . . . . . . . . . . . . . . . . . . . . . . . . . . . . . . . . . Cave-ins Triggered . | . . . . . . . . . . . . . . . . . . . . . . . . . . . . . . . . . . . Exploration Rate (%) 58 | 2 79 98 96 79 63 48 54 80 39 32 14 98 98 74 89 12 82 70 81 39 14 94 96 68 95 10 86 57 62 43 25 35 16 19 Regions Visited 34 Branch Regions 19 Pre-discovered Areas 6 | . . . . . . . . . . . . 1 . 1 . . . . . . . . 1 . . . . . 3 . . . . . Known Exits Taken 26 | . . . . 1 . 1 . 1 . . 1 1 1 1 1 1 1 1 1 1 1 1 1 1 1 1 1 1 1 1 1 1 1 . Unknown Exits Taken 5 | 1 1 1 1 . . . . . . 1 . . . . . . . . . . . . . . . . . . . . . . . . Scrap Searched 43 | . . 1 18 . . . . . . . . 9 2 . 2 . . . . . . 3 2 . 1 . 3 . . 2 . . . . Spaces Dug 124 | . . . . 8 17 3 32 . . . . 8 3 . 12 4 . . . . 7 1 1 3 1 7 . 2 . 3 7 5 . . Terrain Destroyed 1083 | . . . 6 27 39 52 83 30 36 10 10 39 41 . 73 4 . . . 1 38 65 1 27 112 18 34 35 . 40 111 5 63 83 Melee 32 | . . . . . 3 . 1 . . . . 8 3 . 4 1 . . . . 2 1 1 3 . 3 . 2 . . . . . . Projectile 66 | . . . . 1 . 1 7 . . . . . . . . 3 . . . 1 7 . . . 5 4 . . . 4 19 5 6 3 AOE 985 | . . . 6 26 36 51 75 30 36 10 10 31 38 . 69 . . . . . 29 64 . 24 107 11 34 33 . 36 92 . 57 80 Terrain Rammed . | . . . . . . . . . . . . . . . . . . . . . . . . . . . . . . . . . . . Walls Destroyed . | . . . . . . . . . . . . . . . . . . . . . . . . . . . . . . . . . . . Machines Disabled . | . . . . . . . . . . . . . . . . . . . . . . . . . . . . . . . . . . . Actions | -11 -10 -10 -10 -8 -8 -8 -8 -8 -8 -8 -7 -7 -7 -7 -6 -6 -6 -6 -6 -6 -5 -5 -5 -5 -4 -4 -4 -4 -4 -3 -3 -2 -1 -1 --------- Run | Jun Mat Min Sub Mat Gar Mat Gar Mat Gar Mat Fac Low Low Dat Pro Fac Ext Cet Arc Hub Fac Upp Upp War Pro Fac Upp Upp Zhi Pro Res Res Acc Com Total 29847 | 3 756 551 3251 1397 992 566 802 1169 962 335 633 1588 1184 92 965 468 931 215 416 850 1195 1273 1452 888 1284 610 868 543 262 312 1106 976 578 374 Wait 3378 | . 92 18 283 195 52 19 284 186 573 38 109 27 16 . 41 56 65 66 55 274 241 24 69 56 69 75 29 85 19 18 138 3 43 60 Move 23901 | 1 582 521 2818 1013 775 458 419 866 354 242 476 1493 1129 88 860 362 674 140 269 514 828 1176 1334 738 1174 449 807 432 204 264 808 917 452 264 Hop . | . . . . . . . . . . . . . . . . . . . . . . . . . . . . . . . . . . . Pick Up 168 | . 12 3 21 18 3 2 2 13 . 3 6 10 2 . 3 4 . 2 2 4 6 4 2 7 2 7 1 1 2 1 10 12 3 . Fast Attach 166 | . 7 . 3 16 . 4 3 7 . 8 3 2 3 . 7 5 9 2 3 6 15 4 5 9 1 4 2 . 9 2 15 7 4 1 Attach 59 | . 2 . 4 6 1 1 3 2 2 . 3 . 1 . 1 1 . . 2 . 5 1 1 1 2 6 . . . 1 6 1 4 2 Detach 41 | . 1 . . 3 . 1 1 1 . 2 . 1 . . 6 5 . . 2 2 5 . . 1 1 . . . 1 . 4 3 1 . Swap 395 | 2 1 . 28 25 16 13 13 11 8 3 8 20 15 3 14 12 12 . 2 5 25 19 13 11 7 17 10 9 2 7 28 8 18 10 Drop 271 | . 2 3 17 32 3 11 3 15 . 8 5 8 5 . 6 9 12 5 3 6 13 9 5 20 2 8 3 1 10 3 19 20 5 . Fire 1079 | . 50 5 37 74 61 55 56 67 25 30 20 14 10 . 21 11 28 . 77 36 51 25 22 25 26 39 16 12 12 16 71 5 46 36 Melee 153 | . . . 40 2 4 . 2 . . . 2 13 3 1 5 2 35 . . . 2 11 1 20 . 4 . 3 3 . . . . . Ram . | . . . . . . . . . . . . . . . . . . . . . . . . . . . . . . . . . . . Kick 1 | . . . . . 1 . . . . . . . . . . . . . . . . . . . . . . . . . . . . . Crush 42 | . 7 1 . 3 . 2 2 1 . 1 1 . . . . 1 4 . 1 3 4 . . . . 1 . . . . 7 . 2 1 Escape Stasis 12 | . . . . . 9 . . . . . . . . . . . 3 . . . . . . . . . . . . . . . . . Rewire 143 | . . . . . 39 . 14 . . . . . . . 1 . 89 . . . . . . . . . . . . . . . . . Trap 38 | . . . . 10 28 . . . . . . . . . . . . . . . . . . . . . . . . . . . . . Miscellaneous . | . . . . . . . . . . . . . . . . . . . . . . . . . . . . . . . . . . . Route ------- -11/Junkyard -10/Materials (discovered 3 exits: [*Mat x2] / [*Min]) -10/Mines (discovered 3 exits: [*Mat x2] / *Sub) -10/Subcaves (discovered 3 exits: *Mat x2 / Rec) -8/Materials (discovered 4 exits: *Fac x3 / Gar) -8/Garrison (discovered 3 exits: *Mat x3) -8/Materials (discovered 2 exits: *Fac / Gar) -8/Garrison (discovered 2 exits: *Mat x2) -8/Materials (discovered 3 exits: *Fac x2 / Gar) -8/Garrison (discovered 2 exits: *Mat x2) -8/Materials -7/Factory -7/Lower Caves -7/Lower Caves (discovered 2 exits: *Fac / *Dat) -7/Data Miner -6/Proximity Caves -6/Factory (discovered 3 exits: Fac / *Ext x2) -6/Extension (discovered 2 exits: *Fac / *Cet) -6/Cetus (discovered 2 exits: *Fac / *Arc) -6/Archives (discovered 3 exits: *Fac / *Hub x2) -6/Hub_04(d) -5/Factory (discovered 3 exits: *Fac / *Upp x2) -5/Upper Caves -5/Upper Caves (discovered 2 exits: *Fac / *War) -5/Warlord -4/Proximity Caves -4/Factory (discovered 3 exits: Res / *Upp x2) -4/Upper Caves -4/Upper Caves -4/Zhirov -3/Proximity Caves -3/Research -2/Research -1/Access -1/Command Free Derelict Territories History --------- Turn | Location | Event 4 | -11/Junkyard | Discovered new exit (range 1) 6 | -11/Junkyard | Entered Materials 49 | -10/Materials | Discovered new exit (range 15) 312 | -10/Materials | Build established: Mutant 659 | -10/Materials | Discovered new exit (range 12) 661 | -10/Materials | Discovered new exit (range 16) 903 | -10/Materials | Repaired Lgt. Treads 1215 | -10/Materials | Entered Mines 1215 | -10/Mines | Assisted by bots powering up and referring to "LRC-V3" 1306 | -10/Mines | A weapon hastily lodged in a ceiling crevice suddenly fell to the ground 1353 | -10/Mines | Learned Materials security intel 1358 | -10/Mines | Discovered new exit (range 7) 1430 | -10/Mines | Discovered new exit (range 7) 2075 | -10/Mines | Discovered new exit (range 6) 2088 | -10/Mines | Entered Subcaves 2088 | -10/Subcaves | Accompanied by 2 allies 2093 | -10/Subcaves | Led the pair of lost Derelicts to an unsafe place 2096 | -10/Subcaves | Discovered new exit (range 10) 2146 | -10/Subcaves | Identified exit to Recycling 2449 | -10/Subcaves | Shifting Twisted Machinery released Enh. Flamer 2456 | -10/Subcaves | Shifting Twisted Machinery released Ripper 2531 | -10/Subcaves | Shifting Twisted Machinery released Sub. Optics 2534 | -10/Subcaves | Discovered new exit (range 9) 2540 | -10/Subcaves | Shifting Twisted Machinery released Sub. Beam Cannon 2865 | -10/Subcaves | A swath of the cavern ceiling suddenly collapsed 3029 | -10/Subcaves | Lost 3 parts (1u2w) 3081 | -10/Subcaves | Shifting Twisted Machinery released Sub. Machine Gun 3093 | -10/Subcaves | Shifting Twisted Machinery released Mak. Armor Plating 3279 | -10/Subcaves | Build established: Scavenger-Mutant 3426 | -10/Subcaves | A swath of the cavern ceiling suddenly collapsed 3640 | -10/Subcaves | Build established: Mutant 3647 | -10/Subcaves | Learned Materials terminal intel 4094 | -10/Subcaves | Disturbed a concealed Subdweller 4351 | -10/Subcaves | Visited 4L-MR0's lab 4371 | -10/Subcaves | Found Rainbow Chip 5209 | -10/Subcaves | Build established: Scavenger-Mutant 5576 | -10/Subcaves | Build established: Mutant 7169 | -10/Subcaves | Entered Materials 7169 | -8/Materials | Evolved 4 slots: Propulsion x1, Utility x3 7170 | -8/Materials | Attached Rainbow Chip, gained temporary slots: Power, Propulsion, Utility, Weapon 7171 | -8/Materials | Loaded intel: 12 terminal locations 7476 | -8/Materials | Repaired Lgt. Treads 7607 | -8/Materials | Build established: Derelict-Tank 7810 | -8/Materials | Discovered new exit (range 8) 8149 | -8/Materials | Central database locked down 8309 | -8/Materials | Discovered new exit (range 9) 8980 | -8/Materials | Build established: Tank 9060 | -8/Materials | Discovered new exit (range 15) 9270 | -8/Materials | Repaired Arm. Treads 9404 | -8/Materials | Identified exit to Garrison 9404 | -8/Materials | Entered Garrison 9430 | -8/Garrison | Triggered checkpoint 9469 | -8/Garrison | Garrison Relay disabled 9536 | -8/Garrison | Triggered checkpoint 9590 | -8/Garrison | Triggered checkpoint 9660 | -8/Garrison | Triggered checkpoint 9710 | -8/Garrison | Garrison Relay disabled 9845 | -8/Garrison | Discovered new exit (range 13) 9957 | -8/Garrison | Spotted B-75 Beast 9992 | -8/Garrison | Destroyed B-75 Beast 9997 | -8/Garrison | Discovered new exit (range 13) 10033 | -8/Garrison | Discovered new exit (range 8) 10033 | -8/Garrison | Discovered new exit (range 60) 10033 | -8/Garrison | Discovered new exit (range 80) 10033 | -8/Garrison | Mak. System Shield fried by hacking feedback 10126 | -8/Garrison | Triggered checkpoint 10164 | -8/Garrison | Garrison Relay disabled 10223 | -8/Garrison | Triggered checkpoint 10532 | -8/Garrison | Build established: Mutant 10648 | -8/Garrison | Garrison Relay disabled 10650 | -8/Garrison | Garrison Relay disabled 10659 | -8/Garrison | Garrison Relay disabled 10662 | -8/Garrison | Garrison Relay disabled 10755 | -8/Garrison | Entered Materials 11364 | -8/Materials | Destroyed 10 combat bots 11438 | -8/Materials | Discovered new exit (range 4) 11561 | -8/Materials | Identified exit to Garrison 11612 | -8/Materials | Garrison activated, responded to threat 11627 | -8/Materials | Entered Garrison 11627 | -8/Garrison | Accompanied by 1 ally 11703 | -8/Garrison | Garrison Relay disabled 11748 | -8/Garrison | Triggered checkpoint 11761 | -8/Garrison | Garrison Relay disabled 12167 | -8/Garrison | Discovered new exit (range 13) 12234 | -8/Garrison | Triggered checkpoint 12237 | -8/Garrison | Core integrity fell below 50% 12288 | -8/Garrison | Garrison Relay disabled 12302 | -8/Garrison | Triggered checkpoint 12454 | -8/Garrison | Triggered checkpoint 12503 | -8/Garrison | Lost 3 parts (1p1u1w) 12506 | -8/Garrison | Discovered new exit (range 5) 12835 | -8/Garrison | Entered Materials 12835 | -8/Materials | Accompanied by 3 allies 13489 | -8/Materials | Discovered new exit (range 16) 13648 | -8/Materials | Repaired Hrd. Medium Armor Plating? 13697 | -8/Materials | Repaired Arm. Treads? 13761 | -8/Materials | Repaired Hvy. Ion Engine 14036 | -8/Materials | Repaired Arm. Treads 14192 | -8/Materials | Discovered new exit (range 15) 14732 | -8/Materials | Identified exit to Garrison 14732 | -8/Materials | Entered Garrison 14794 | -8/Garrison | Triggered checkpoint 14831 | -8/Garrison | Garrison Relay disabled 14982 | -8/Garrison | Triggered checkpoint 14984 | -8/Garrison | Core integrity fell below 20% 15091 | -8/Garrison | Discovered new exit (range 14) 15126 | -8/Garrison | Discovered new exit (range 6) 15254 | -8/Garrison | Garrison Relay disabled 15991 | -8/Garrison | Entered Materials 16497 | -8/Materials | Discovered new exit (range 5) 16553 | -8/Materials | Entered Factory 16553 | -7/Factory | Evolved 2 slots: Propulsion x1, Weapon x1 16824 | -7/Factory | Discovered new exit (range 4) 16838 | -7/Factory | Build established: Tank 16848 | -7/Factory | Identified exit to Lower Caves 17309 | -7/Factory | Repaired Adv. Treads 17453 | -7/Factory | Entered Lower Caves 17515 | -7/Lower Caves | Encountered a Warlord checkpoint 17826 | -7/Lower Caves | Met a Warlord Commander 17827 | -7/Lower Caves | Learned location of Warlord (-5) 17836 | -7/Lower Caves | Found Unknown Device 17836 | -7/Lower Caves | Identified Encrypted Comm Array 18019 | -7/Lower Caves | Learned Factory terminal intel 18292 | -7/Lower Caves | Build established: Skirmisher 18305 | -7/Lower Caves | Learned Extension trap positions 18305 | -7/Lower Caves | Learned Research emergency access door positions 18305 | -7/Lower Caves | Learned Extension terminal intel 19503 | -7/Lower Caves | Discovered new exit (range 9) 19527 | -7/Lower Caves | Identified exit to Lower Caves 19769 | -7/Lower Caves | Entered another Lower Caves area 19775 | -7/Lower Caves | Discovered new exit (range 12) 19824 | -7/Lower Caves | Attracted the attention of an 0b10 checkpoint 19832 | -7/Lower Caves | Identified exit to Factory 20787 | -7/Lower Caves | Discovered new exit (range 16) 20818 | -7/Lower Caves | Identified exit to Data Miner 21108 | -7/Lower Caves | Learned 12 Factory zone layouts 21491 | -7/Lower Caves | Entered Data Miner 21494 | -7/Data Miner | Discovered new exit (range 6) 21522 | -7/Data Miner | Met Data Miner 21567 | -7/Data Miner | Learned location of Section 7 (-2) 21567 | -7/Data Miner | Acquired the access code to Warlord's prototype stash 21587 | -7/Data Miner | Received God Mode back door access code from Data Miner 21623 | -7/Data Miner | Identified exit to Proximity Caves 21625 | -7/Data Miner | Entered Proximity Caves 22022 | -6/Proximity Caves | Escorted by Enhanced Grunt 22117 | -6/Proximity Caves | Encountered a Derelict guarding a broken Freighter 22175 | -6/Proximity Caves | Found Prototype Processor 22175 | -6/Proximity Caves | Identified Exp. Signal Interpreter 22683 | -6/Proximity Caves | Encountered a Derelict sapper outpost 22993 | -6/Proximity Caves | Learned Factory garrison access intel 22993 | -6/Proximity Caves | Discovered exit to Factory (range 4) 23018 | -6/Proximity Caves | Entered Factory 23018 | -6/Factory | Accompanied by 1 ally 23018 | -6/Factory | Evolved 2 slots: Power x1, Utility x1 23019 | -6/Factory | Identified exit to Extension 23019 | -6/Factory | Identified exit to Factory 23020 | -6/Factory | Loaded intel: 26 terminal locations 23021 | -6/Factory | Loaded intel: 3 garrison access locations 23845 | -6/Factory | Incoming investigation squad redirected 23958 | -6/Factory | Entered Extension 23959 | -6/Extension | Loaded intel: 11 trap records 23960 | -6/Extension | Loaded intel: 17 terminal locations 24058 | -6/Extension | Incoming investigation squad redirected 24503 | -6/Extension | Rescued A7 24509 | -6/Extension | Build established: Tank 24719 | -6/Extension | Rescued a captive Derelict 24720 | -6/Extension | Rescued a captive Derelict 24930 | -6/Extension | Rescued a captive Derelict 25143 | -6/Extension | Incoming investigation squad redirected 25179 | -6/Extension | Spotted B-75 Beast 25191 | -6/Extension | Allies destroyed B-75 Beast 25193 | -6/Extension | Spotted B-75 Beast 25196 | -6/Extension | Build established: Commander-Tank 25204 | -6/Extension | Allies destroyed B-75 Beast 25335 | -6/Extension | Rescued a captive Derelict 25335 | -6/Extension | Rescued a captive Derelict 25425 | -6/Extension | Rescued a captive Derelict 25426 | -6/Extension | Rescued a captive Derelict 25564 | -6/Extension | Rescued a captive Derelict 25565 | -6/Extension | Rescued a captive Derelict 25602 | -6/Extension | Rescued a captive Derelict 25603 | -6/Extension | Rescued a captive Derelict 25761 | -6/Extension | Rescued a captive Derelict 25806 | -6/Extension | Discovered exit to Factory (range 10) 25809 | -6/Extension | Discovered new exit (range 6) 25821 | -6/Extension | Identified exit to Cetus 25869 | -6/Extension | Entered Cetus 25869 | -6/Cetus | Accompanied by 27 allies (A7) 25874 | -6/Cetus | Acquired a Cetus Manufacturing Module code from A7 25897 | -6/Cetus | Spotted Cetus Guard 25897 | -6/Cetus | Spotted Cetus Guard 25898 | -6/Cetus | Spotted Cetus Guard 25898 | -6/Cetus | Spotted Cetus Guard 25912 | -6/Cetus | Allies destroyed Cetus Guard 25915 | -6/Cetus | Allies destroyed Cetus Guard 25917 | -6/Cetus | Allies destroyed Cetus Guard 25919 | -6/Cetus | Allies destroyed Cetus Guard 25992 | -6/Cetus | Started Cetus Manufacturing Module 26003 | -6/Cetus | Escorted A7 to Cetus Mainframe 26017 | -6/Cetus | Manufactured an Enhanced Grunt 26022 | -6/Cetus | Discovered new exit (range 16) 26042 | -6/Cetus | Manufactured an Enhanced Grunt 26052 | -6/Cetus | Cetus Manufacturing Module disabled 26055 | -6/Cetus | Spotted Cetus Guard 26055 | -6/Cetus | Spotted Cetus Guard 26058 | -6/Cetus | Spotted Cetus Guard 26061 | -6/Cetus | Spotted Cetus Guard 26066 | -6/Cetus | Discovered exit to Factory (range 16) 26068 | -6/Cetus | Allies destroyed Cetus Guard 26073 | -6/Cetus | Allies destroyed Cetus Guard 26080 | -6/Cetus | Allies destroyed Cetus Guard 26083 | -6/Cetus | Allies destroyed Cetus Guard 26091 | -6/Cetus | Met Revision 17 26140 | -6/Cetus | Identified exit to Archives 26190 | -6/Cetus | Entered Archives 26190 | -6/Archives | Accompanied by 15 allies (A7) 26195 | -6/Archives | Received a hacking code to weaken MAIN.C 26424 | -6/Archives | Discovered new exit (range 15) 26514 | -6/Archives | Discovered new exit (range 15) 26549 | -6/Archives | Discovered exit to Factory (range 14) 26607 | -6/Archives | Unable to access archive contents 26809 | -6/Archives | Build established: Scavenger-Skirmisher 28919 | -6/Archives | Identified exit to Hub_04(d) 29141 | -6/Archives | Entered Hub_04(d) 29141 | -6/Hub_04(d) | Accompanied by 2 allies 29535 | -6/Hub_04(d) | Discovered exit to Factory (range 12) 29827 | -6/Hub_04(d) | Build established: Scavenger-Tank 29957 | -6/Hub_04(d) | Found Prototype Launcher 30023 | -6/Hub_04(d) | Network Hub disabled 30267 | -6/Hub_04(d) | Network Hub disabled 30546 | -6/Hub_04(d) | Entered Factory 30546 | -5/Factory | Evolved 2 slots: Propulsion x1, Utility x1 31072 | -5/Factory | Destroyed 7 combat bots 31146 | -5/Factory | First assault squad dispatched 31162 | -5/Factory | Incoming assault squad redirected 31232 | -5/Factory | Discovered new exit (range 12) 31249 | -5/Factory | Identified exit to Factory 31380 | -5/Factory | Identified exit to Upper Caves 31445 | -5/Factory | Repaired Hrd. Heavy Armor Plating? 31581 | -5/Factory | Repaired Centrium Heavy Treads 31651 | -5/Factory | Build established: Scavenger-Skirmisher 31677 | -5/Factory | Repaired Force Rifle 31723 | -5/Factory | Identified Scatter Rocket Array 31730 | -5/Factory | Repaired Imp. Medium Treads 31778 | -5/Factory | Repaired Gatling Laser 31895 | -5/Factory | Joined by Warlord Ghost squad 32417 | -5/Factory | Entered Upper Caves 32437 | -5/Upper Caves | Learned Factory garrison access intel 33046 | -5/Upper Caves | Attacked by a delusional Derelict stockpiling Unaware 33100 | -5/Upper Caves | Learned Factory non-interactive machine intel 33172 | -5/Upper Caves | Attracted the attention of an 0b10 checkpoint 33959 | -5/Upper Caves | Encountered a Warlord checkpoint 33975 | -5/Upper Caves | Discovered new exit (range 9) 34463 | -5/Upper Caves | Identified exit to Upper Caves 34466 | -5/Upper Caves | Entered another Upper Caves area 34466 | -5/Upper Caves | Accompanied by 3 allies 34525 | -5/Upper Caves | Discovered exit to Factory (range 15) 34561 | -5/Upper Caves | Found Alien Artifact 34561 | -5/Upper Caves | Identified Core Expander 34561 | -5/Upper Caves | Installed Core Expander, added new Propulsion slot 35141 | -5/Upper Caves | Learned location of Armory (-3) 35142 | -5/Upper Caves | Ambushed by wild Derelicts 35471 | -5/Upper Caves | Learned 4 Factory zone layouts 36279 | -5/Upper Caves | Discovered new exit (range 5) 36321 | -5/Upper Caves | Identified exit to Warlord 36802 | -5/Upper Caves | Entered Warlord 37086 | -5/Warlord | Build established: Scavenger-Mutant 37552 | -5/Warlord | Found Prototype Special Weapon 37552 | -5/Warlord | Identified RU-N14's Throwing Claymores v3 37559 | -5/Warlord | Found RU-N14's Throwing Claymores v3 37561 | -5/Warlord | Found RU-N14's Throwing Claymores v3 37564 | -5/Warlord | Found RU-N14's Throwing Claymores v3 37590 | -5/Warlord | Found RU-N14's Throwing Claymores v3 37593 | -5/Warlord | Found RU-N14's Throwing Claymores v3 37726 | -5/Warlord | Warlord's base attacked by MAIN.C 37728 | -5/Warlord | Met Warlord 37769 | -5/Warlord | Opened Warlord's prototype stash 37804 | -5/Warlord | Found Prototype Processor 37804 | -5/Warlord | Identified Exp. Core Analyzer 37809 | -5/Warlord | Found Prototype Device 37809 | -5/Warlord | Identified Thermal Barrier 37836 | -5/Warlord | Found Prototype Reactor 37836 | -5/Warlord | Identified Vortex Chain Reactor 38045 | -5/Warlord | Spotted B-75 Beast 38069 | -5/Warlord | Spotted B-86 Titan 38076 | -5/Warlord | Warlord forces counterattacked 38083 | -5/Warlord | Spotted Striker 38093 | -5/Warlord | Destroyed Striker 38112 | -5/Warlord | Spotted Striker 38158 | -5/Warlord | Spotted Executioner 38160 | -5/Warlord | Spotted Striker 38163 | -5/Warlord | Destroyed Executioner 38164 | -5/Warlord | Allies destroyed Striker 38180 | -5/Warlord | Discovered new exit (range 14) 38186 | -5/Warlord | Destroyed 9 combat bots 38200 | -5/Warlord | Identified exit to Proximity Caves 38208 | -5/Warlord | Entered Proximity Caves 38208 | -4/Proximity Caves | Accompanied by 5 allies 38795 | -4/Proximity Caves | Build established: Scavenger-Skirmisher 38926 | -4/Proximity Caves | Learned Research emergency access door positions 39314 | -4/Proximity Caves | Attracted the attention of an 0b10 checkpoint 40271 | -4/Proximity Caves | Entered Factory 40271 | -4/Factory | Accompanied by 5 allies 40271 | -4/Factory | Evolved 2 slots: Utility x2 40272 | -4/Factory | Identified exit to Research 40273 | -4/Factory | Loaded intel: 236 non-interactive machine locations 40274 | -4/Factory | Loaded intel: 4 garrison access locations 40405 | -4/Factory | Incoming investigation squad redirected 40418 | -4/Factory | Garrison activated, responded to threat 40502 | -4/Factory | Incoming assault squad redirected 40726 | -4/Factory | Identified exit to Upper Caves 41113 | -4/Factory | Build established: Scavenger-Tank 41235 | -4/Factory | Entered Upper Caves 41235 | -4/Upper Caves | Accompanied by 3 allies 41645 | -4/Upper Caves | Learned location of 1 exit from Research 41877 | -4/Upper Caves | Spotted B-86 Titan 42303 | -4/Upper Caves | Destroyed B-86 Titan 42428 | -4/Upper Caves | Discovered new exit (range 12) 42610 | -4/Upper Caves | Identified exit to Upper Caves 42618 | -4/Upper Caves | Entered another Upper Caves area 42971 | -4/Upper Caves | Learned Research emergency access door positions 43006 | -4/Upper Caves | Discovered new exit (range 15) 43162 | -4/Upper Caves | Identified exit to Zhirov 43273 | -4/Upper Caves | Attacked by a delusional Derelict stockpiling parts 43448 | -4/Upper Caves | Entered Zhirov 43450 | -4/Zhirov | Discovered new exit (range 3) 43479 | -4/Zhirov | Met Zhirov 43538 | -4/Zhirov | Learned location of Quarantine (-2) 43538 | -4/Zhirov | Learned location of Testing (-3) 43538 | -4/Zhirov | Learned location of Command (-1) 43547 | -4/Zhirov | Zhirov requested help retrieving the SGEMP Prototype 43572 | -4/Zhirov | Found Alien Artifact 43572 | -4/Zhirov | Identified Integrated Dissipator 43572 | -4/Zhirov | Installed Integrated Dissipator, increased core heat dissipation (+20) 43748 | -4/Zhirov | Found Alien Artifact 43843 | -4/Zhirov | Identified exit to Proximity Caves 43845 | -4/Zhirov | Entered Proximity Caves 43939 | -3/Proximity Caves | Spotter reported a threat 44027 | -3/Proximity Caves | Spotter reported a threat 44027 | -3/Proximity Caves | Spotter reported a threat 44175 | -3/Proximity Caves | Discovered exit to Research (range 8) 44313 | -3/Proximity Caves | Build established: Scavenger-Gunner 44344 | -3/Proximity Caves | Entered Research 44344 | -3/Research | Evolved 2 slots: Power x1, Utility x1 44345 | -3/Research | Identified exit to Research 44634 | -3/Research | Search patrols dispatched 44666 | -3/Research | Garrison activated, responded to threat 44814 | -3/Research | Identified Transdimensional Reconstructor 44866 | -3/Research | Found Gamma Bomb Array 45131 | -3/Research | Search patrols dispatched 45344 | -3/Research | First assault squad dispatched 45972 | -3/Research | Spotted B-86 Titan 45979 | -3/Research | Destroyed B-86 Titan 46043 | -3/Research | Entered another Research area 46043 | -2/Research | Warlord forces began assault on 0b10 46043 | -2/Research | Evolved 2 slots: Propulsion x2 46068 | -2/Research | Distinguished unit "Department No. 42" dispatched to help 46068 | -2/Research | Distinguished unit "Magnificent Bastards" dispatched to help 46153 | -2/Research | Research machine network offline 46261 | -2/Research | Build established: Gunner 46391 | -2/Research | Borebot progress halted 46403 | -2/Research | Met up with Warlord 46657 | -2/Research | Borebot progress halted 46715 | -2/Research | Found Prototype Launcher 46717 | -2/Research | Identified Point Singularity Launcher 47182 | -2/Research | Build established: Mutant 47266 | -2/Research | Warlord invited to help at Command 47581 | -2/Research | Discovered new exit (range 15) 47606 | -2/Research | Identified exit to Access 47607 | -2/Research | Entered Access 47607 | -1/Access | Evolved 2 slots: Utility x2 48003 | -1/Access | Build established: Gunner 48060 | -1/Access | Destroyed 8 combat bots 48180 | -1/Access | Incoming investigation squad redirected 48296 | -1/Access | Destroyed 10 combat bots 48515 | -1/Access | Discovered new exit (range 7) 48525 | -1/Access | Identified exit to Command 48531 | -1/Access | Entered Command 48565 | -1/Command | Repaired Hrd. Heavy Armor Plating 48626 | -1/Command | Disengaged cave seal 48626 | -1/Command | Derelicts emerged from the dark tunnel 48626 | -1/Command | Welcomed Warlord to Command 48717 | -1/Command | Spotted B-99 Colossus 48753 | -1/Command | Destroyed 7 combat bots 48824 | -1/Command | First assault squad dispatched 48958 | -1/Command | Spotted M Guard 48958 | -1/Command | Spotted M Guard 48958 | -1/Command | Spotted Combat Programmer 48960 | -1/Command | Spotted Combat Programmer 48963 | -1/Command | Warlord commented on Warlord statues 48985 | -1/Command | Combat Programmer assimilated allied KS-B56(g) 48989 | -1/Command | Destroyed M Guard 48991 | -1/Command | Destroyed Combat Programmer 48996 | -1/Command | All MAIN.C guards destroyed 49074 | -1/Command | Met MAIN.C 49074 | -1/Command | Hacked MAIN.C using A7's code 49080 | -1/Command | 0b10 Conduit disabled 49096 | -1/Command | MAIN.C activated Command garrisons 49116 | -1/Command | Destroyed MAIN.C 49120 | *** | Establishing Free Derelict Territories! Last Messages --------------- 49101_ Acquired 5 matter. 49101_ MAIN.C reaction time slowed by virus. 49103_ Blast Slug penetrates MAIN.C. 49103_ MAIN.C reaction time slowed by virus. 49104_ Acquired 1 matter. 49104_ Acquired 4 matter. 49105_ Acquired 10 matter. 49106_ Blast Slug penetrates MAIN.C. 49108_ MAIN.C reaction time slowed by virus. 49109_ Blast Slug penetrates MAIN.C. 49110_ Acquired 10 matter. 49113_ Blast Slug penetrates MAIN.C. 49114_ Acquired 10 matter. 49116_ MAIN.C: "I hope you know you're still going to DIE HERE WITH ME!" Heavy Barrier opened. 49116_ MAIN.C destroyed. ZY-L1N: Victory! Sure there's still lots to do, but without MAIN.C at the helm 0b10 doesn't stand a chance. We've got this... Map ----- +----------------------------------------------------+ | ?????????????????????????????????????????????????? | | ?????????????????????????????????????????????????? | | ?????????????????????????????????????????????????? | | ?????????????????????????????????????????????????? | | ?????????????????????????????????????????????????? | | ?????????????????????????????????????????????????? | | ?????????????????????????????????????????????????? | | ?????????????????????????????????????????????????? | | ?????????????????????????????????????????????????? | | ?????????????????????????????????????????????????? | | ?????????????????????????????????????????????????? | | ?????????????????????????????????????????????????? | | ?????????????????????????????????????????????????? | | ?????????????????????????????????????????????????? | | ?????????????????????????????????????????????????? | | ?????????????????????????????????????????????????? | | ?????????????################????????????????????? | | ????????????"" """" #????????????????????? | | ???????????? "" #????????????????????? | | ?????????"" "" ###################### | | ???????""" """ + | | ??????#" "" + [= | | ??????#"" " + | | | ??????# W ###################! | | ??????# #?????????????????# | | ??????# @ #?????????????????# | | ??????# "#?????????????????# | | ??????# $ " """""#?????????????????# | | ??????# """""""""#?????????????????# | | ??????# """"""""""#?????????????????# | | ??????# " " " " #?????????????????# | | ??????# ? " " " " #?????????????????# | | ?????? ???? " " """" " #?????????????????# | | ???????? ????????? " """" #?????????????????# | | ???????????????????" " #?????????????????#### | | ???????????????????? " #????????????????????# | | ?????????????????????""?""""#??????????????????# | | ????????????????????????" ???????????????????# | | ??????????????????????????????????????????????# | | ??????????????????????????????????????????????# ?? | | ?????????????????????????????????????????????????? | | ?????????????????????????????????????????????????? | | ?????????????????????????????????????????????????? | | ?????????????????????????????????????????????????? | | ?????????????????????????????????????????????????? | | ?????????????????????????????????????????????????? | | ?????????????????????????????????????????????????? | | ?????????????????????????????????????????????????? | | ?????????????????????????????????????????????????? | | ?????????????????????????????????????????????????? | +----------------------------------------------------+ Best States ------------- Heat Dissipation 142 Coolant Potential 120 Energy Generation 73 Energy Capacity 995 Matter Stores 300 Matter Capacity 300 Sight Range 22 Robot Scan Range 16 Terrain Scan Density 10 ECM Strength 2 Base Temperature (-) 200 Corruption Block 13 Armor Coverage 1650 Resistance: TH 50 Point Defense Rating 160 Weapon Cycling 20 Evasion (%) 55 Targeting Accuracy 16 Core Analysis 11 Recoil Reduction 8 Matter Filtering 30 Particle Charging 30 Salvage Targeting 1 Offensive Hacking 28 Defensive Hacking 11 Item Schematics ----------------- Hcp. Storage Unit | -10/Materials | Hacked Adv. Beam Rifle | -8/Materials | Scanalyzed Wave Gun | -8/Materials | Scanalyzed Hrd. Medium Armor Plating | -8/Materials | Scanalyzed Combat Drone Bay | -7/Data Miner | Free Lgt. Regenerative Plating | -7/Data Miner | Free Cld. Cesium-ion Thruster | -7/Data Miner | Free Thermal Defense Suite | -7/Data Miner | Free Gui. EMP Blaster | -7/Data Miner | Free Arm. Medium Treads | -7/Data Miner | Free Imp. Kinecellerator | -7/Data Miner | Free Imp. Arc Projector | -7/Data Miner | Free Imp. Fusion Compressor | -7/Data Miner | Free Imp. Heavy Armor Plating | -5/Factory | Hacked Imp. Heavy Siege Treads | -4/Factory | Hacked Assault Drone Bay | -4/Zhirov | Free Exp. Heat Sink | -4/Zhirov | Free Exp. Optical Array | -4/Zhirov | Free Imp. Arc Thrower | -4/Zhirov | Free Robot Schematics ------------------ M-28 Smith | -7/Data Miner | Free H-55 Commando | -7/Data Miner | Free R-10 Processor | -7/Data Miner | Free G-50 Soldier | -7/Data Miner | Free H-66 Slayer | -7/Data Miner | Free S-27 Virus | -7/Data Miner | Free Fabricated ------------ Nothing Alien Tech Used ----------------- Core Expander Integrated Dissipator Achievements -------------- None Challenges ------------ None Game ------ Seed GlidesysGlidesysStick Manual? 0 Play Time 03:56:13 Cumulative 1364.0 hours Start 2023.07.18 @ 04:15:02 End 2023.07.19 @ 04:46:37 Sessions 11 Manual Loads 0 Difficulty Rogue Special Mode None Game No. 968 Rogue 964 Adventurer 4 Explorer 0 Win Type 7 Total 157 Types 116/10/10/7/2/1/1/6/4 Lore% 95 Gallery% 98 Achievement% 98 Wizard Run 0 Options --------- ASCII 0 Keyboard 1 Movement Vi Keybinds 0 Fullscreen 0 Font 20/X11 Map View 76x50 Tactical HUD 1 Map Filters NONE Filters NONE Steam 1 RUN: dc04559a-9a2d-43b4-bae5-9590cd63237d